Body Name,Body,Service Level,Expense Type,Expense Code,Narrative,Date,Transaction Number,Amount,Capital and Revenue,Supplier Name,Supplier ID
South Ribble Council,http://statistics.data.gov.uk/doc/local-authority/30UN,Area 2 - Waste Transport/Eastern & Central Teams,Materials General,4040,100x 240ltr wheeled bin (Green) @ 20.43,15/05/2019,0000447031,"2,043.00",Revenue,A&C Weber UK Ltd,132802
South Ribble Council,http://statistics.data.gov.uk/doc/local-authority/30UN,Area 2 - Waste Transport/Eastern & Central Teams,Materials General,4040,32x 360ltr wheeled bins (Green/Black) @ 33.11,15/05/2019,0000447031,"1,059.52",Revenue,A&C Weber UK Ltd,132802
South Ribble Council,http://statistics.data.gov.uk/doc/local-authority/30UN,Housing,Cap Grant- Improve Grants,C570,DFG WORKS TO BATHROOM AT ADDRESS REDACTED AS PER QUOTE SUPPLIED OF 3900.00 ,01/05/2019,0000446659,"3,900.00",Revenue,ABBI PROPERTY SERVICES LTD,131357
South Ribble Council,http://statistics.data.gov.uk/doc/local-authority/30UN,Democratic Services,Training Expense-Course Fees,1402,"ABC FOOD LAW ONLINE:10x NAME REDACTED",24/05/2019,0000447120,"1,950.00",Revenue,ABC FOOD LAW,132538
South Ribble Council,http://statistics.data.gov.uk/doc/local-authority/30UN,Development Enterprise & Comm Mgnt,Professional Fees,4510,Gateway Customer Experience Review,24/05/2019,0000446303,"3,025.00",Revenue,ACAS LEEDS,00118594
South Ribble Council,http://statistics.data.gov.uk/doc/local-authority/30UN,Information Services,Peripherals,4241,6 x Apple iPad @ 592.00 each and 6 x Folio keyboard case @ 132.00 each,17/05/2019,0000447139,"4,344.00",Revenue,ACS SYSTEMS UK LTD,00070166
South Ribble Council,http://statistics.data.gov.uk/doc/local-authority/30UN,Information Services,Peripherals,4269,"10 x BT Converse 2200 phones, black @ 34.25 each",22/05/2019,0000447178,342.50,Revenue,ACS SYSTEMS UK LTD,00070166
South Ribble Council,http://statistics.data.gov.uk/doc/local-authority/30UN,Area 1 - Penwortham Western Parishes,Materials General,4040,2000 x SOUTH RIBBLE BC DOG FOULING STICKERS - PRINTED ONTO SUPERTACK VINYL - AS PER EMAIL OF 21.2.19,22/05/2019,0000447192,400.00,Revenue,Aden Tudor,132769
South Ribble Council,http://statistics.data.gov.uk/doc/local-authority/30UN,Area 2 - Waste Transport/Eastern & Central Teams,External Contractors Charges,4570,"Spec Repair, AE12 AXR, JFC12237, (NAME REDACTED)",15/05/2019,0000446448,299.75,Revenue,AEBI SCHMIDT UK LTD,00085672
South Ribble Council,http://statistics.data.gov.uk/doc/local-authority/30UN,Area 2 - Waste Transport/Eastern & Central Teams,Operational Furniture & Equip,4010,1 x ALLIANCE 1224 SUPER CAP TROLLEY - BOOSTER PACK,10/05/2019,0000446995,795.00,Revenue,Alliance Electronics Limited,132713
South Ribble Council,http://statistics.data.gov.uk/doc/local-authority/30UN,Revenues Plus,Financial,4811,ret chqs,08/05/2019,0000446837,8.40,Revenue,ALLPAY LTD,00122276
South Ribble Council,http://statistics.data.gov.uk/doc/local-authority/30UN,Revenues Plus,Financial,4811,post office,08/05/2019,0000446837,"1,019.56",Revenue,ALLPAY LTD,00122276
South Ribble Council,http://statistics.data.gov.uk/doc/local-authority/30UN,Revenues Plus,Financial,4811,paypoint,08/05/2019,0000446837,143.28,Revenue,ALLPAY LTD,00122276
South Ribble Council,http://statistics.data.gov.uk/doc/local-authority/30UN,Revenues Plus,Financial,4811,webconn,08/05/2019,0000446837,48.82,Revenue,ALLPAY LTD,00122276
South Ribble Council,http://statistics.data.gov.uk/doc/local-authority/30UN,HR & Communications,Other Misc,48GR,"Strategic Human Resource, Org Dev and Design - pragmatic solution focus guidance and support. Covering Apr/May/Jun 2019",10/05/2019,0000447002,"7,060.00",Revenue,Altus Labefactum LTD,132826
South Ribble Council,http://statistics.data.gov.uk/doc/local-authority/30UN,Neighbourhood Admin & Support,Materials General,4040,MICRO MINI TOILET ROLLS - 2ply  120M X 90MM - AA201,03/05/2019,0000446718,84.72,Revenue,AMTOLL LTD,130945
South Ribble Council,http://statistics.data.gov.uk/doc/local-authority/30UN,Neighbourhood Admin & Support,Materials General,4040,GENERAL PURPOSE DISINFECTANT  5 LTR - BC017 - 5,03/05/2019,0000446718,15.30,Revenue,AMTOLL LTD,130945
South Ribble Council,http://statistics.data.gov.uk/doc/local-authority/30UN,Neighbourhood Admin & Support,Clothing- Uniforms & Laundry,4410,DISPOSABLE GLOVES NITRILE (BOX- 100) size medium - DG150-M,03/05/2019,0000446718,70.40,Revenue,AMTOLL LTD,130945
South Ribble Council,http://statistics.data.gov.uk/doc/local-authority/30UN,Neighbourhood Admin & Support,Clothing- Uniforms & Laundry,4410,DISPOSABLE GLOVES NITRILE (BOX- 100) size large - DG150-L,03/05/2019,0000446718,70.40,Revenue,AMTOLL LTD,130945
South Ribble Council,http://statistics.data.gov.uk/doc/local-authority/30UN,Neighbourhood Admin & Support,Clothing- Uniforms & Laundry,4410,DISPOSABLE GLOVES NITRILE (BOX- 100) X large - DG150-XL,03/05/2019,0000446718,35.20,Revenue,AMTOLL LTD,130945
South Ribble Council,http://statistics.data.gov.uk/doc/local-authority/30UN,Shared Assurance Services,Employee Related Insurance,1800,Motor Trade Policy effective from 01/04/2019- 01/12/2020,17/05/2019,0000447071,"2,778.72",Revenue,Aon UK Limited Accounts Division,132142
South Ribble Council,http://statistics.data.gov.uk/doc/local-authority/30UN,Housing,Cap Grant- Improve Grants,C570,DFG WORKS TO BATHROOM AT ADDRESS REDACTED AS PER YOUR QUOTE SUPPLIED OF 4648.61,24/05/2019,0000447314,"4,648.61",Revenue,APG DOMESTIC SERVICES,00061463
South Ribble Council,http://statistics.data.gov.uk/doc/local-authority/30UN,Information Services,Peripherals,4241,"2 x 80� Panels on Trolleys 7,795.00,  Installation 395, as per quote",01/05/2019,0000446716,"8,190.00",Revenue,AUDITEL,130495
South Ribble Council,http://statistics.data.gov.uk/doc/local-authority/30UN,Property Services,Operational Furniture & Equip,4010,Please supply and fit a reception room over view screen at the Civic Centre as detailed in quotation 19 16966,01/05/2019,0000446717,"2,985.00",Revenue,AUDITEL,130495
South Ribble Council,http://statistics.data.gov.uk/doc/local-authority/30UN,Information Services,Capital Expenditure,C234,"Microphones, USB Power, Auditel PC Control, Auditel Camera System, Desk finish to match existing decor. Installation",29/05/2019,0000447367,"20,003.75",Revenue,AUDITEL,130495
South Ribble Council,http://statistics.data.gov.uk/doc/local-authority/30UN,Area 3 - Parks/Leyland East West,Operational Furniture & Equip,4010,Etesia Pro 46 Model PHTS3 Pedestrian Rotary Mower,22/05/2019,0000447113,"1,698.00",Revenue,BALMERS GM LTD,00016023
South Ribble Council,http://statistics.data.gov.uk/doc/local-authority/30UN,Neighbourhood Admin & Support,Capital Expenditure,C230,Provide+install LED lighting controlled moving detectors at ADDRESS REDACTED (excl ceiling tiles+support grid x sections) ,08/05/2019,0000446623,"4,540.00",Revenue,BELEC ELECTRICAL LTD,130290
South Ribble Council,http://statistics.data.gov.uk/doc/local-authority/30UN,Neighbourhood Admin & Support,Capital Expenditure,C230,Provide and install emergency lighting at ADDRESS REDACTED,01/05/2019,0000446624,"2,055.60",Revenue,BELEC ELECTRICAL LTD,130290
South Ribble Council,http://statistics.data.gov.uk/doc/local-authority/30UN,Area 1 - Penwortham Western Parishes,Capital Expenditure,C230,Civic Centre - Electric Vehicle Supply Fit 3 phase isolator+distribution board ,15/05/2019,0000447020,"2,681.18",Revenue,BELEC ELECTRICAL LTD,130290
South Ribble Council,http://statistics.data.gov.uk/doc/local-authority/30UN,Environmental Health,Subs to Statutory Bodies,4720,ANNUAL RECONITION FEE - FROM 26 JUNE 2019,10/05/2019,0000446945,500.00,Revenue,BIIAB,132677
South Ribble Council,http://statistics.data.gov.uk/doc/local-authority/30UN,Regeneration,Other Misc,4861,Manufacturing and delivery of A2 Lectern for Bashall Grove,15/05/2019,0000446119,580.00,Revenue,BORDER SIGNS AND GRAPHIX,130927
South Ribble Council,http://statistics.data.gov.uk/doc/local-authority/30UN,HR & Communications,Other Expenses,463C,Project Lead Away Day 12th - 13/4/19 18 residential and 7 day delegates Facilitation and support for project development event,08/05/2019,0000446025,"6,900.00",Revenue,Brathay Services Ltd,132732
South Ribble Council,http://statistics.data.gov.uk/doc/local-authority/30UN,Environmental Health,Operational Furniture & Equip,4010,Renewal of BRE Excess Cold Calculator for South Ribble,03/05/2019,0000446715,"1,000.00",Revenue,BUILDING RESEARCH ESTABLISHMENT LTD,131951
South Ribble Council,http://statistics.data.gov.uk/doc/local-authority/30UN,Area 1 - Penwortham Western Parishes,Contract Hire & Lease Costs,3212,Hire of 1 mini sweeper for April & May 2019 (9 weeks @ 525.00 per week),22/05/2019,0000446740,"4,725.00",Revenue,BUNCE (ASHBURY) LTD,132805
South Ribble Council,http://statistics.data.gov.uk/doc/local-authority/30UN,Area 1 - Penwortham Western Parishes,Contract Hire & Lease Costs,3212,Hire of 1 mini sweeper for April & May 2019 (9 weeks @ 525.00 per week),22/05/2019,0000446741,250.00,Revenue,BUNCE (ASHBURY) LTD,132805
South Ribble Council,http://statistics.data.gov.uk/doc/local-authority/30UN,Revenues Plus,Professional Fees,4520,1 day Training/Consultancy,01/05/2019,0000446774,"1,300.00",Revenue,CAPITA BUSINESS SERVICES LTD,00122179
South Ribble Council,http://statistics.data.gov.uk/doc/local-authority/30UN,Revenues Plus,Peripherals,4242,DWP LA Data Sharing Programme,17/05/2019,0000447058,"5,893.37",Revenue,CAPITA BUSINESS SERVICES LTD,00117948
South Ribble Council,http://statistics.data.gov.uk/doc/local-authority/30UN,Area 2 - Waste Transport/Eastern & Central Teams,External Contractors Charges,4570,Chorley BC Waste Collection of SRBC properties on Buckshaw Village,15/05/2019,0000446930,"52,817.00",Revenue,CHORLEY BOROUGH COUNCIL,00017352
South Ribble Council,http://statistics.data.gov.uk/doc/local-authority/30UN,Homelessness,Contributions,4730,ADDRESS REDACTED � April 2019 30 days @ 38.63 per day = 1158.90 + VAT,22/05/2019,0000447115,"1,158.90",Revenue,CHORLEY BOROUGH COUNCIL,00017352
South Ribble Council,http://statistics.data.gov.uk/doc/local-authority/30UN,Homelessness,Contractors Charges 5,5311,"ADDRESS REDACTED 18/4/1930/4/19 14 days @ 38.63 pd, 18/4/1930/4/19 14 days @ 38.63 pd",22/05/2019,0000447118,"1,081.64",Revenue,CHORLEY BOROUGH COUNCIL,00017352
South Ribble Council,http://statistics.data.gov.uk/doc/local-authority/30UN,Property Services,Rep & Maint Fixed Plant,2035,"2019 / 2020 annual fees for the monitoring & maintenance of the intruder alarm system at the Civic Centre, Leyland",08/05/2019,0000446878,"2,157.90",Revenue,CHUBB LTD,00090625
South Ribble Council,http://statistics.data.gov.uk/doc/local-authority/30UN,Information Services,Peripherals,4248,"HCO - Abritas. Licence, Support & Maintenance Schedule for period 01/07/19 - 30/06/20",29/05/2019,0000447277,"10,378.11",Revenue,CIVICA UK LTD,00102717
South Ribble Council,http://statistics.data.gov.uk/doc/local-authority/30UN,Information Services,Peripherals,4248,"HCO - Abritas.  Licence, Support & Maintenance Schedule - New Progress, for period 01/07/19 - 30/06/20, as per quote",29/05/2019,0000447323,"4,946.54",Revenue,CIVICA UK LTD,00102717
South Ribble Council,http://statistics.data.gov.uk/doc/local-authority/30UN,Information Services,Peripherals,4248,"HCO - Abritas.  Licence, Support & Maintenance Schedule - Accent Foundation, for period 01/07/19 - 30/06/20, as per quote",29/05/2019,0000447324,"4,946.54",Revenue,CIVICA UK LTD,00102717
South Ribble Council,http://statistics.data.gov.uk/doc/local-authority/30UN,Property Services,Rep & Maint Premises,2020,Worden Park - fix top step at Clowe Art - as per your photo supplied please contact NAME REDACTED for access,01/05/2019,0000446681,190.08,Revenue,COOPER BESPOKE JOINERY LTD,00104456
South Ribble Council,http://statistics.data.gov.uk/doc/local-authority/30UN,Property Services,Rep & Maint Premises,2020,materials,01/05/2019,0000446681,59.92,Revenue,COOPER BESPOKE JOINERY LTD,00104456
South Ribble Council,http://statistics.data.gov.uk/doc/local-authority/30UN,Property Services,Rep & Maint Premises,2020,2018/2019 Annual Inspection of doors and windows at Bamber Bridge Leisure Centre,03/05/2019,0000446684,138.24,Revenue,COOPER BESPOKE JOINERY LTD,00104456
South Ribble Council,http://statistics.data.gov.uk/doc/local-authority/30UN,Property Services,Rep & Maint Premises,2020,2018/2019 Annual Inspection of doors and windows at Carr Street Community Centre,03/05/2019,0000446684,34.56,Revenue,COOPER BESPOKE JOINERY LTD,00104456
South Ribble Council,http://statistics.data.gov.uk/doc/local-authority/30UN,Property Services,Rep & Maint Premises,2020,2018/2019 Annual Inspection of doors and windows at Civic Centre,03/05/2019,0000446684,155.52,Revenue,COOPER BESPOKE JOINERY LTD,00104456
South Ribble Council,http://statistics.data.gov.uk/doc/local-authority/30UN,Property Services,Rep & Maint Premises,2020,2018/2019 Annual Inspection of doors and windows at Higher Walton Community Centre,03/05/2019,0000446684,60.48,Revenue,COOPER BESPOKE JOINERY LTD,00104456
South Ribble Council,http://statistics.data.gov.uk/doc/local-authority/30UN,Property Services,Rep & Maint Premises,2020,2018/2019 Annual Inspection of doors and windows at Kingsfold Community Centre/Penwortham Town Council,03/05/2019,0000446684,216.00,Revenue,COOPER BESPOKE JOINERY LTD,00104456
South Ribble Council,http://statistics.data.gov.uk/doc/local-authority/30UN,Property Services,Rep & Maint Premises,2020,materials for line5,03/05/2019,0000446684,143.98,Revenue,COOPER BESPOKE JOINERY LTD,00104456
South Ribble Council,http://statistics.data.gov.uk/doc/local-authority/30UN,Property Services,Rep & Maint Premises,2020,2018/2019 Annual Inspection of doors and windows at Penwortham Leisure Centre,01/05/2019,0000446691,69.12,Revenue,COOPER BESPOKE JOINERY LTD,00104456
South Ribble Council,http://statistics.data.gov.uk/doc/local-authority/30UN,Property Services,Rep & Maint Premises,2020,2018/2019 Annual Inspection of doors and windows at Public Conveniences,01/05/2019,0000446691,86.40,Revenue,COOPER BESPOKE JOINERY LTD,00104456
South Ribble Council,http://statistics.data.gov.uk/doc/local-authority/30UN,Property Services,Rep & Maint Premises,2020,2018/2019 Annual Inspection of doors and windows at Sports Pavillions at Moss Side and Holland House,01/05/2019,0000446691,172.80,Revenue,COOPER BESPOKE JOINERY LTD,00104456
South Ribble Council,http://statistics.data.gov.uk/doc/local-authority/30UN,Property Services,Rep & Maint Premises,2020,2018/2019 Annual Inspection of doors and windows at Tennis Centre,01/05/2019,0000446691,69.12,Revenue,COOPER BESPOKE JOINERY LTD,00104456
South Ribble Council,http://statistics.data.gov.uk/doc/local-authority/30UN,Property Services,Rep & Maint Premises,2020,2018/2019 Annual Inspection of doors and windows at Worden Arts Centre,01/05/2019,0000446691,69.12,Revenue,COOPER BESPOKE JOINERY LTD,00104456
South Ribble Council,http://statistics.data.gov.uk/doc/local-authority/30UN,Property Services,Rep & Maint Premises,2020,2018/2019 Annual Inspection of doors and windows at Worden Park Properties,01/05/2019,0000446691,60.48,Revenue,COOPER BESPOKE JOINERY LTD,00104456
South Ribble Council,http://statistics.data.gov.uk/doc/local-authority/30UN,Revenues Plus,Postage,4291,Postage April - June 2019,08/05/2019,0000446725,817.14,Revenue,CRITIQOM,131053
South Ribble Council,http://statistics.data.gov.uk/doc/local-authority/30UN,Revenues Plus,Stationery,4130,Stationery April - June 2019,08/05/2019,0000446728,438.58,Revenue,CRITIQOM,131053
South Ribble Council,http://statistics.data.gov.uk/doc/local-authority/30UN,Revenues Plus,Postage,4291,Postage April - June 2019,08/05/2019,0000446891,"1,414.34",Revenue,CRITIQOM,131053
South Ribble Council,http://statistics.data.gov.uk/doc/local-authority/30UN,Revenues Plus,Postage,4291,Postage for May - June 2019,17/05/2019,0000447109,303.70,Revenue,CRITIQOM,131053
South Ribble Council,http://statistics.data.gov.uk/doc/local-authority/30UN,Revenues Plus,Postage,4291,Postage for May - June 2019,22/05/2019,0000447254,408.87,Revenue,CRITIQOM,131053
South Ribble Council,http://statistics.data.gov.uk/doc/local-authority/30UN,Revenues Plus,Postage,4291,Postage for May - June 2019,24/05/2019,0000447300,"1,040.56",Revenue,CRITIQOM,131053
South Ribble Council,http://statistics.data.gov.uk/doc/local-authority/30UN,HR & Communications,Balance Sheet,0030,CYCLE TO WORK SCHEME - NAME REDACTED,03/05/2019,0000446804,833.33,Revenue,CYCLESCHEME CO  UK,130237
South Ribble Council,http://statistics.data.gov.uk/doc/local-authority/30UN,Environmental Health,Operational Furniture & Equip,4016,Fire Risk Assessment Services as per NAME REDACTED,29/05/2019,0000447151,350.00,Revenue,DAVID P JOHNSTONE LIMITED,132842
South Ribble Council,http://statistics.data.gov.uk/doc/local-authority/30UN,Housing,Cap Grant- Improve Grants,C570,DFG WORKS TO BATHROOM AT ADDRESS REDACTED AS PER QUOTE SUPPLIED OF 4117.21,17/05/2019,0000447052,"4,117.21",Revenue,Deakins Plumbing & Heating Ltd,131446
South Ribble Council,http://statistics.data.gov.uk/doc/local-authority/30UN,Information Services,Agency Fees,1121,Engineer Support Days - 12.5 days @ 280 per day up to 31/03/19,01/05/2019,0000446720,"1,120.00",Revenue,Decipher:IT Ltd,132690
South Ribble Council,http://statistics.data.gov.uk/doc/local-authority/30UN,Information Services,Agency Fees,1121,Support Engineer Days 1st April - 18th April,01/05/2019,0000446721,"3,290.00",Revenue,Decipher:IT Ltd,132690
South Ribble Council,http://statistics.data.gov.uk/doc/local-authority/30UN,Area 2 - Waste Transport/Eastern & Central Teams,External Contractors Charges,4570,1 SPEC REPAIR VO65 KRE JFC12170,01/05/2019,0000445990,764.01,Revenue,DENNIS EAGLE LTD,00019774
South Ribble Council,http://statistics.data.gov.uk/doc/local-authority/30UN,Area 2 - Waste Transport/Eastern & Central Teams,Materials General,4040,SHOCK ABSORBER VO65KRE JFC 12465,15/05/2019,0000447034,359.48,Revenue,DENNIS EAGLE LTD,00019774
South Ribble Council,http://statistics.data.gov.uk/doc/local-authority/30UN,Area 2 - Waste Transport/Eastern & Central Teams,Materials General,4040,2 X LINK RODS - VO65KRF - JFC12551,29/05/2019,0000447317,413.17,Revenue,DENNIS EAGLE LTD,00019774
South Ribble Council,http://statistics.data.gov.uk/doc/local-authority/30UN,Area 2 - Waste Transport/Eastern & Central Teams,Materials General,4040,1 X LED REAR LIGHT,29/05/2019,0000447317,71.02,Revenue,DENNIS EAGLE LTD,00019774
South Ribble Council,http://statistics.data.gov.uk/doc/local-authority/30UN,Area 3 - Parks/Leyland East West,Operational Furniture & Equip,4010,Tree Gang Equipment following Lola inspection.,10/05/2019,0000446964,862.02,Revenue,DICK LEIGH,00026534
South Ribble Council,http://statistics.data.gov.uk/doc/local-authority/30UN,Healthy Communities,Sports Dev Expenses,4894,Provision of 3 places on the Dodgeball level 2 course on 27th April 2019,08/05/2019,0000446855,300.00,Revenue,Dodgeball Development Limited,132828
South Ribble Council,http://statistics.data.gov.uk/doc/local-authority/30UN,Housing,Cap Grant- Improve Grants,C570,DFG WORKS FOR ADDRESS REDACTED FOR CUSTOMERS PLANS OF 28320.00 EQUIPMENT 8920.00 GRANT 21080.00,17/05/2019,0000447077,"10,400.00",Revenue,DS Building Services,132742
South Ribble Council,http://statistics.data.gov.uk/doc/local-authority/30UN,Environmental Health,Consultancy Fees,4542,Evolve assessment of 25 taxis -  per NAME REDACTED,01/05/2019,0000446703,"3,500.00",Revenue,EB Charging Ltd,132714
South Ribble Council,http://statistics.data.gov.uk/doc/local-authority/30UN,Information Services,Peripherals,4260,apr charges,10/05/2019,0000446944,"2,607.35",Revenue,EE Ltd,131653
South Ribble Council,http://statistics.data.gov.uk/doc/local-authority/30UN,Area 2 - Waste Transport/Eastern & Central Teams,Materials General,4040,PIPE REPAIR PJ62UCG JFC 12468,15/05/2019,0000447023,310.66,Revenue,Elite Hydraulic Services Limited,132660
South Ribble Council,http://statistics.data.gov.uk/doc/local-authority/30UN,Area 2 - Waste Transport/Eastern & Central Teams,Waste Disposal Charges,5110,1/4/19 to 31/3/20,10/05/2019,0000446612,"1,295.00",Revenue,ENVIRONMENT AGENCY,00009755
South Ribble Council,http://statistics.data.gov.uk/doc/local-authority/30UN,Legal,Legal,4821,ADVICE/PROFESSIONAL SERVICES REGARDING ELECTION LAW,08/05/2019,0000446929,"1,125.00",Revenue,ERIC OWEN,132110
South Ribble Council,http://statistics.data.gov.uk/doc/local-authority/30UN,Area 2 - Waste Transport/Eastern & Central Teams,Printing,4127,PO34043 closed year end but belong to that period to force through,01/05/2019,0000446446,"11,975.54",Revenue,Euro Print Labels,132447
South Ribble Council,http://statistics.data.gov.uk/doc/local-authority/30UN,Area 2 - Waste Transport/Eastern & Central Teams,Printing,4127,Green Waste Permit Printing and Distribution 2019/20,10/05/2019,0000446962,"5,212.48",Revenue,Euro Print Labels,132447
South Ribble Council,http://statistics.data.gov.uk/doc/local-authority/30UN,Democratic Services,Other Misc,4422,EXTENDED HIRE OF POLYTOP TABLES FOR EUROPEAN ELECTION - COLLECTION DATE 29/05/2019,01/05/2019,0000446755,688.50,Revenue,ev-ent Hire,131954
South Ribble Council,http://statistics.data.gov.uk/doc/local-authority/30UN,Democratic Services,Other Misc,4421,EXTENDED HIRE OF POLYTOP TABLES FOR EUROPEAN ELECTION - COLLECTION DATE 29/05/2019,01/05/2019,0000446755,688.50,Revenue,ev-ent Hire,131954
South Ribble Council,http://statistics.data.gov.uk/doc/local-authority/30UN,Information Services,Peripherals,4248,Annual Bank Wizard renewal,15/05/2019,0000447042,"4,051.70",Revenue,EXPERIAN LTD,00094045
South Ribble Council,http://statistics.data.gov.uk/doc/local-authority/30UN,Area 2 - Waste Transport/Eastern & Central Teams,External Contractors Charges,4570,SPEC REPAIR - JFC11700 - PO13UUM - TH,10/05/2019,0000443692,396.78,Revenue,Farid Hillend Engineering Limited,130575
South Ribble Council,http://statistics.data.gov.uk/doc/local-authority/30UN,Area 2 - Waste Transport/Eastern & Central Teams,Materials General,4040,ROLLERS AND SCREWS PJ62UCG JFC 12468,10/05/2019,0000446921,553.58,Revenue,Farid Hillend Engineering Limited,130575
South Ribble Council,http://statistics.data.gov.uk/doc/local-authority/30UN,Area 2 - Waste Transport/Eastern & Central Teams,Materials General,4040,ROLLERS PJ62UCL JFC 12492,22/05/2019,0000447256,545.08,Revenue,Farid Hillend Engineering Limited,130575
South Ribble Council,http://statistics.data.gov.uk/doc/local-authority/30UN,Revenues Plus,Parish Precepts,4870,farrington parish precepts,15/05/2019,0000447048,"50,000.00",Revenue,FARINGTON PARISH COUNCIL,00031105
South Ribble Council,http://statistics.data.gov.uk/doc/local-authority/30UN,Area 2 - Waste Transport/Eastern & Central Teams,External Contractors Charges,4570,Additional bulky waste collections April 2019,22/05/2019,0000447234,319.31,Revenue,FCC Environment Services (UK) Ltd,131612
South Ribble Council,http://statistics.data.gov.uk/doc/local-authority/30UN,Area 2 - Waste Transport/Eastern & Central Teams,External Contractors Charges,4570,Additional WEEE collections April 2019,22/05/2019,0000447234,88.77,Revenue,FCC Environment Services (UK) Ltd,131612
South Ribble Council,http://statistics.data.gov.uk/doc/local-authority/30UN,Area 2 - Waste Transport/Eastern & Central Teams,Balance Sheet,0030,retention,22/05/2019,0000447234,-20.40,Revenue,FCC Environment Services (UK) Ltd,131612
South Ribble Council,http://statistics.data.gov.uk/doc/local-authority/30UN,Area 2 - Waste Transport/Eastern & Central Teams,External Contractors Charges,4570,Additional clinical waste collection April 2019,22/05/2019,0000447235,264.11,Revenue,FCC Environment Services (UK) Ltd,131612
South Ribble Council,http://statistics.data.gov.uk/doc/local-authority/30UN,Area 2 - Waste Transport/Eastern & Central Teams,Balance Sheet,0030,retention,22/05/2019,0000447235,-13.21,Revenue,FCC Environment Services (UK) Ltd,131612
South Ribble Council,http://statistics.data.gov.uk/doc/local-authority/30UN,Area 2 - Waste Transport/Eastern & Central Teams,External Contractors Charges,4570,Residual Waste Collections April 2019,24/05/2019,0000447330,"41,921.09",Revenue,FCC Environment Services (UK) Ltd,131612
South Ribble Council,http://statistics.data.gov.uk/doc/local-authority/30UN,Area 2 - Waste Transport/Eastern & Central Teams,External Contractors Charges,4570,Dry Recyclable Non Terraced April 2019,24/05/2019,0000447330,"42,931.46",Revenue,FCC Environment Services (UK) Ltd,131612
South Ribble Council,http://statistics.data.gov.uk/doc/local-authority/30UN,Area 2 - Waste Transport/Eastern & Central Teams,External Contractors Charges,4570,Dry Recyclable Terraced April 2019,24/05/2019,0000447330,"2,039.38",Revenue,FCC Environment Services (UK) Ltd,131612
South Ribble Council,http://statistics.data.gov.uk/doc/local-authority/30UN,Area 2 - Waste Transport/Eastern & Central Teams,External Contractors Charges,4570,Organic Waste Collections (Non Terraced) April 2019,24/05/2019,0000447330,"29,752.99",Revenue,FCC Environment Services (UK) Ltd,131612
South Ribble Council,http://statistics.data.gov.uk/doc/local-authority/30UN,Area 2 - Waste Transport/Eastern & Central Teams,External Contractors Charges,4570,Schedule 2 Properties April 2019,24/05/2019,0000447330,"1,702.69",Revenue,FCC Environment Services (UK) Ltd,131612
South Ribble Council,http://statistics.data.gov.uk/doc/local-authority/30UN,Area 2 - Waste Transport/Eastern & Central Teams,External Contractors Charges,4570,Commercial Waste Collections April 2019,24/05/2019,0000447330,"6,672.24",Revenue,FCC Environment Services (UK) Ltd,131612
South Ribble Council,http://statistics.data.gov.uk/doc/local-authority/30UN,Area 2 - Waste Transport/Eastern & Central Teams,External Contractors Charges,4570,Bulky Waste Collections April 2019,24/05/2019,0000447330,922.22,Revenue,FCC Environment Services (UK) Ltd,131612
South Ribble Council,http://statistics.data.gov.uk/doc/local-authority/30UN,Area 2 - Waste Transport/Eastern & Central Teams,External Contractors Charges,4570,WEEE Collections April 2019,24/05/2019,0000447330,344.75,Revenue,FCC Environment Services (UK) Ltd,131612
South Ribble Council,http://statistics.data.gov.uk/doc/local-authority/30UN,Area 2 - Waste Transport/Eastern & Central Teams,External Contractors Charges,4570,Clinical Waste Collections April 2019,24/05/2019,0000447330,587.10,Revenue,FCC Environment Services (UK) Ltd,131612
South Ribble Council,http://statistics.data.gov.uk/doc/local-authority/30UN,Area 2 - Waste Transport/Eastern & Central Teams,External Contractors Charges,4570,Replacement Bins April 2019,24/05/2019,0000447330,"5,000.00",Revenue,FCC Environment Services (UK) Ltd,131612
South Ribble Council,http://statistics.data.gov.uk/doc/local-authority/30UN,Area 2 - Waste Transport/Eastern & Central Teams,External Contractors Charges,4570,Additional Properties April 2019,24/05/2019,0000447330,"2,719.72",Revenue,FCC Environment Services (UK) Ltd,131612
South Ribble Council,http://statistics.data.gov.uk/doc/local-authority/30UN,Neighbourhood Admin & Support,Materials General,4040,FOOTBALL PITCH LINE MARKER PAINT 15LTRS - PITCHMARKER Q2,01/05/2019,0000446639,416.82,Revenue,Fleet Line Markers Limited,131942
South Ribble Council,http://statistics.data.gov.uk/doc/local-authority/30UN,Area 2 - Waste Transport/Eastern & Central Teams,External Contractors Charges,4570,Planned inspection of 6 local exhaust systems @ 60.00 each,22/05/2019,0000447289,360.00,Revenue,FUMEXLTD,131067
South Ribble Council,http://statistics.data.gov.uk/doc/local-authority/30UN,Area 3 - Parks/Leyland East West,Capital Expenditure,C230,1 X ETS-1900TR Drying Cabinet with 3 sets of hanging rails,03/05/2019,0000446842,680.00,Revenue,G&E Automatic Equipment Ltd,132820
South Ribble Council,http://statistics.data.gov.uk/doc/local-authority/30UN,Area 2 - Waste Transport/Eastern & Central Teams,Materials General,4040,"1x deck belt, 3x cutter blades, 2x bolts, 1x throttle cable and handle, 1x dip stick and 1x hydraulic filters TMR23A1, JFC12203",01/05/2019,0000446731,280.76,Revenue,GIBSONS GARDEN MACHINERY LTD,00059051
South Ribble Council,http://statistics.data.gov.uk/doc/local-authority/30UN,Democratic Services,External Contractors Charges,4575,CATERING FOR 40 PEOPLE - MENU 4 - PLUS AN ASSORTMENT OF MINI CAKES. MAYORAL EVENT MAY 2019 ,22/05/2019,0000447069,270.40,Revenue,GLOVERS BAKERY LTD,00102416
South Ribble Council,http://statistics.data.gov.uk/doc/local-authority/30UN,Area 2 - Waste Transport/Eastern & Central Teams,Materials General,4040,VARIOUS FILTERS FOR STORES,22/05/2019,0000447220,370.74,Revenue,H & J SERVICES LTD,00114446
South Ribble Council,http://statistics.data.gov.uk/doc/local-authority/30UN,Housing,Cap Grant- Improve Grants,C570,DFG WORKS TO GROUND FLOOR BEDROOM AND BATHROOM WORK AT ADDRESS REDACTED QUOTE OF 13006.00,01/05/2019,0000446763,"13,006.00",Revenue,Hall Building Contractors Ltd,131423
South Ribble Council,http://statistics.data.gov.uk/doc/local-authority/30UN,Neighbourhood Admin & Support,Vehicle Running Costs,3132,Diesel,01/05/2019,0000446672,"15,524.58",Revenue,Hall Fuels trading name of WFL (UK) Ltd,00116758
South Ribble Council,http://statistics.data.gov.uk/doc/local-authority/30UN,Neighbourhood Admin & Support,Vehicle Running Costs,3132,Diesel,08/05/2019,0000446861,"15,729.30",Revenue,Hall Fuels trading name of WFL (UK) Ltd,00116758
South Ribble Council,http://statistics.data.gov.uk/doc/local-authority/30UN,Neighbourhood Admin & Support,Materials General,4040,12000L X DIESEL,15/05/2019,0000447024,"12,528.00",Revenue,Hall Fuels trading name of WFL (UK) Ltd,00116758
South Ribble Council,http://statistics.data.gov.uk/doc/local-authority/30UN,Neighbourhood Admin & Support,Materials General,4040,1500L X GAS OIL,15/05/2019,0000447027,892.35,Revenue,Hall Fuels trading name of WFL (UK) Ltd,00116758
South Ribble Council,http://statistics.data.gov.uk/doc/local-authority/30UN,Shared Assurance Services,Agency Fees,1121,NAME REDACTED - interim Audit & Risk Manager for period 15-10-2018 - 29-04-2018,08/05/2019,0000446886,"2,222.97",Revenue,Hays Specialist Recruitment Ltd,132288
South Ribble Council,http://statistics.data.gov.uk/doc/local-authority/30UN,Shared Assurance Services,Agency Fees,1121,"NAME REDACTED - interim Audit & Risk Manager for period 15-10-2018 - 29-04-2018",08/05/2019,0000446887,"1,868.97",Revenue,Hays Specialist Recruitment Ltd,132288
South Ribble Council,http://statistics.data.gov.uk/doc/local-authority/30UN,Shared Assurance Services,Agency Fees,1121,"NAME REDACTED - interim Audit & Risk Manager for period 15-10-2018 - 29-04-2018",10/05/2019,0000446937,559.22,Revenue,Hays Specialist Recruitment Ltd,132288
South Ribble Council,http://statistics.data.gov.uk/doc/local-authority/30UN,Shared Assurance Services,Agency Fees,1121,"NAME REDACTED - interim Audit & Risk Manager for period 15-10-2018 - 29-04-2018",10/05/2019,0000446968,660.99,Revenue,Hays Specialist Recruitment Ltd,132288
South Ribble Council,http://statistics.data.gov.uk/doc/local-authority/30UN,Shared Assurance Services,Agency Fees,1121,"NAME REDACTED - interim Audit & Risk Manager for period 15-10-2018 - 29-04-2018",10/05/2019,0000446969,599.73,Revenue,Hays Specialist Recruitment Ltd,132288
South Ribble Council,http://statistics.data.gov.uk/doc/local-authority/30UN,Shared Assurance Services,Agency Fees,1121,"NAME REDACTED - interim Audit & Risk Manager for period 15-10-2018 - 29-04-2018",10/05/2019,0000446970,664.08,Revenue,Hays Specialist Recruitment Ltd,132288
South Ribble Council,http://statistics.data.gov.uk/doc/local-authority/30UN,Shared Assurance Services,Agency Fees,1121,"NAME REDACTED - interim Audit & Risk Manager for period 15-10-2018 - 29-04-2018",10/05/2019,0000446971,560.52,Revenue,Hays Specialist Recruitment Ltd,132288
South Ribble Council,http://statistics.data.gov.uk/doc/local-authority/30UN,Shared Assurance Services,Agency Fees,1121,NAME REDACTED - Temporary Head of Shared Assurance Services for period 19/04/2019 - 01/11/2019,17/05/2019,0000446972,"2,210.30",Revenue,Hays Specialist Recruitment Ltd,132288
South Ribble Council,http://statistics.data.gov.uk/doc/local-authority/30UN,Shared Assurance Services,Agency Fees,1121,"NAME REDACTED - interim Audit & Risk Manager for period 15-10-2018 - 29-04-2018",10/05/2019,0000446973,311.79,Revenue,Hays Specialist Recruitment Ltd,132288
South Ribble Council,http://statistics.data.gov.uk/doc/local-authority/30UN,Shared Assurance Services,Agency Fees,1121,"NAME REDACTED - interim Audit & Risk Manager for period 15-10-2018 - 29-04-2018",10/05/2019,0000446974,635.19,Revenue,Hays Specialist Recruitment Ltd,132288
South Ribble Council,http://statistics.data.gov.uk/doc/local-authority/30UN,Shared Assurance Services,Agency Fees,1121,"NAME REDACTED - interim Audit & Risk Manager for period 15-10-2018 - 29-04-2018",10/05/2019,0000446976,429.71,Revenue,Hays Specialist Recruitment Ltd,132288
South Ribble Council,http://statistics.data.gov.uk/doc/local-authority/30UN,Shared Assurance Services,Agency Fees,1121,"NAME REDACTED - interim Audit & Risk Manager for period 15-10-2018 - 29-04-2018",10/05/2019,0000446977,712.62,Revenue,Hays Specialist Recruitment Ltd,132288
South Ribble Council,http://statistics.data.gov.uk/doc/local-authority/30UN,Shared Assurance Services,Agency Fees,1121,"NAME REDACTED - interim Audit & Risk Manager for period 15-10-2018 - 29-04-2018",10/05/2019,0000446981,702.31,Revenue,Hays Specialist Recruitment Ltd,132288
South Ribble Council,http://statistics.data.gov.uk/doc/local-authority/30UN,Shared Assurance Services,Agency Fees,1121,"NAME REDACTED - interim Audit & Risk Manager for period 15-10-2018 - 29-04-2018",10/05/2019,0000446982,543.76,Revenue,Hays Specialist Recruitment Ltd,132288
South Ribble Council,http://statistics.data.gov.uk/doc/local-authority/30UN,Shared Assurance Services,Agency Fees,1121,"NAME REDACTED - interim Audit & Risk Manager for period 15-10-2018 - 29-04-2018",10/05/2019,0000446984,626.64,Revenue,Hays Specialist Recruitment Ltd,132288
South Ribble Council,http://statistics.data.gov.uk/doc/local-authority/30UN,Shared Assurance Services,Agency Fees,1121,"NAME REDACTED - interim Audit & Risk Manager for period 15-10-2018 - 29-04-2018",10/05/2019,0000446985,613.41,Revenue,Hays Specialist Recruitment Ltd,132288
South Ribble Council,http://statistics.data.gov.uk/doc/local-authority/30UN,Shared Assurance Services,Agency Fees,1121,"NAME REDACTED - interim Audit & Risk Manager for period 15-10-2018 - 29-04-2018",10/05/2019,0000446986,520.68,Revenue,Hays Specialist Recruitment Ltd,132288
South Ribble Council,http://statistics.data.gov.uk/doc/local-authority/30UN,Shared Assurance Services,Agency Fees,1121,"NAME REDACTED - interim Audit & Risk Manager for period 15-10-2018 - 29-04-2018",10/05/2019,0000446987,545.51,Revenue,Hays Specialist Recruitment Ltd,132288
South Ribble Council,http://statistics.data.gov.uk/doc/local-authority/30UN,Shared Assurance Services,Agency Fees,1121,"NAME REDACTED - interim Audit & Risk Manager for period 15-10-2018 - 29-04-2018",10/05/2019,0000446988,433.90,Revenue,Hays Specialist Recruitment Ltd,132288
South Ribble Council,http://statistics.data.gov.uk/doc/local-authority/30UN,Shared Assurance Services,Agency Fees,1121,NAME REDACTED - Temporary Head of Shared Assurance Services for period 19/04/2019 - 01/11/2019,29/05/2019,0000447356,"1,889.69",Revenue,Hays Specialist Recruitment Ltd,132288
South Ribble Council,http://statistics.data.gov.uk/doc/local-authority/30UN,Shared Assurance Services,Agency Fees,1121,NAME REDACTED - Temporary Head of Shared Assurance Services for period 19/04/2019 - 01/11/2019,29/05/2019,0000447357,"1,387.20",Revenue,Hays Specialist Recruitment Ltd,132288
South Ribble Council,http://statistics.data.gov.uk/doc/local-authority/30UN,Shared Assurance Services,Agency Fees,1121,NAME REDACTED - Temporary Head of Shared Assurance Services for period 19/04/2019 - 01/11/2019,29/05/2019,0000447358,"1,963.37",Revenue,Hays Specialist Recruitment Ltd,132288
South Ribble Council,http://statistics.data.gov.uk/doc/local-authority/30UN,Revenues Plus,Parish Precepts,4870,hutton parish precepts,15/05/2019,0000447049,"22,000.00",Revenue,HUTTON PARISH COUNCIL,00023566
South Ribble Council,http://statistics.data.gov.uk/doc/local-authority/30UN,HR & Communications,Advertising,4848,TO TAKE PHOTOS OF NEW COUNCILLORS ON TUESDAY 14 MAY 2019 FOR TWO HOURS (15:00 - 17:00),22/05/2019,0000447154,175.00,Revenue,IAN ROBINSON,132041
South Ribble Council,http://statistics.data.gov.uk/doc/local-authority/30UN,HR & Communications,Advertising,4848,TO TAKE PHOTOS OF NEW COUNCILLORS / MAYOR-MAKING CEREMONY ON 15 MAY 2019 FOR ONE HOUR,22/05/2019,0000447154,100.00,Revenue,IAN ROBINSON,132041
South Ribble Council,http://statistics.data.gov.uk/doc/local-authority/30UN,Democratic Services,Advertising,4848,TAKE PHOTOS OF NEW COUNCILLOR ON TUESDAY 14 MAY 2019 FOR TWO HOURS (15:00 - 17:00),22/05/2019,0000447171,175.00,Revenue,IAN ROBINSON,132041
South Ribble Council,http://statistics.data.gov.uk/doc/local-authority/30UN,Democratic Services,Advertising,4848,TAKE PHOTOS OF NEW COUNCILLORS / MAYOR MAKING CEREMONY ON WEDNESDAY 15 MAY 2019 FOR ONE HOUR ,22/05/2019,0000447171,100.00,Revenue,IAN ROBINSON,132041
South Ribble Council,http://statistics.data.gov.uk/doc/local-authority/30UN,Democratic Services,Advertising,4848,TAKE PHOTOS OF THE NEW MAYOR (EXTRA TIME BEYOND AGREED TIME) ON15 MAY 2019 FOR ONE HOUR ,22/05/2019,0000447171,75.00,Revenue,IAN ROBINSON,132041
South Ribble Council,http://statistics.data.gov.uk/doc/local-authority/30UN,HR & Communications,Subs to Statutory Bodies,4720,LG INFORM MEMBERSHIP SUBSCRIPTION RENEWAL FOR SOUTH RIBBLE BOROUGH COUNCIL - 2019 - 2020,01/05/2019,0000446786,975.00,Revenue,IDEA IMPROVEMENT & DEV AGENCY ,00012111
South Ribble Council,http://statistics.data.gov.uk/doc/local-authority/30UN,Information Services,Consultancy Fees,4541,Technical Services Package - Data Migration and Weekend Working,01/05/2019,0000446713,"2,375.00",Revenue,IDOX PLC,00104485
South Ribble Council,http://statistics.data.gov.uk/doc/local-authority/30UN,Democratic Services,Other Misc,4425,"Idox Elections: EC6 scanning functionality [European election contingency planning]",01/05/2019,0000446714,350.00,Revenue,IDOX PLC,00104485
South Ribble Council,http://statistics.data.gov.uk/doc/local-authority/30UN,Area 1 - Penwortham Western Parishes,Contract Hire & Lease Costs,3212,"HIRE OF 3.5T TIPPERDX14 JXM1.4.19 - 30.4.19",22/05/2019,0000446590,888.33,Revenue,Intack Self Drive Ltd,132314
South Ribble Council,http://statistics.data.gov.uk/doc/local-authority/30UN,Property Services,Rep & Maint Premises,2020,"Moss Side Community Centre Convert heating system, Removal and disposal",01/05/2019,0000446559,760.00,Revenue,J Whittle plumbing & heating,132695
South Ribble Council,http://statistics.data.gov.uk/doc/local-authority/30UN,Area 3 - Parks/Leyland East West,Capital Expenditure,C230,"Installation of 2 mains cold pipework from unit to car park washers with pipework, brackets, stop taps and bib taps provided. ",22/05/2019,0000447122,830.00,Revenue,J Whittle plumbing & heating,132695
South Ribble Council,http://statistics.data.gov.uk/doc/local-authority/30UN,Regeneration,Capital Expenditure,C230,Walton-Le-Dale Community Centre Car Park Retention,22/05/2019,0000446418,"1,614.42",Revenue,John Wade Groundworks Ltd t/a Wade Group,131568
South Ribble Council,http://statistics.data.gov.uk/doc/local-authority/30UN,Area 3 - Parks/Leyland East West,Grounds Maint Cntrctrs Chgs,4657,Carry out repairs to damaged pillar on Worden Park - 412/WPP,22/05/2019,0000447125,"2,895.00",Revenue,John Wade Groundworks Ltd t/a Wade Group,131568
South Ribble Council,http://statistics.data.gov.uk/doc/local-authority/30UN,Planning,Advertising,4841,Press notices for planning applications 2019/20,01/05/2019,0000446113,810.00,Revenue,JPI Media - JOHNSTON PUBLISHING (NORTH WEST),00011345
South Ribble Council,http://statistics.data.gov.uk/doc/local-authority/30UN,Planning,Advertising,4841,Press notices for planning applications 2019/20,01/05/2019,0000446489,972.00,Revenue,JPI Media - JOHNSTON PUBLISHING (NORTH WEST),00011345
South Ribble Council,http://statistics.data.gov.uk/doc/local-authority/30UN,Homelessness,Contributions,4730,"6 MONTHS PRE TENANCY TRAINING APRIL 19 TO SEPT 19",01/05/2019,0000446737,"2,500.00",Revenue,KEY UNLOCKING FUTURES LTD,00098601
South Ribble Council,http://statistics.data.gov.uk/doc/local-authority/30UN,Homelessness,Contributions,4730,HOUSING ADVICE & MEDIATION Q1 APR TO JUN 2019/20,01/05/2019,0000446738,"4,875.00",Revenue,KEY UNLOCKING FUTURES LTD,00098601
South Ribble Council,http://statistics.data.gov.uk/doc/local-authority/30UN,Environmental Health,Materials General,4041,MAXFORCE LN ANT BAIT STATION MAXLN2GSTA,29/05/2019,0000446919,40.50,Revenue,KILLGERM CHEMICALS LTD,00025894
South Ribble Council,http://statistics.data.gov.uk/doc/local-authority/30UN,Environmental Health,Materials General,4041,8w STRAIGHT 12`` SHATTERPROOF TUBE TUB08W607 (3.22 + 0.15),29/05/2019,0000446919,6.44,Revenue,KILLGERM CHEMICALS LTD,00025894
South Ribble Council,http://statistics.data.gov.uk/doc/local-authority/30UN,Environmental Health,Materials General,4041,8W STRAIGHT TUBE 12`` TUB8W547 (2.48 + 0.15),29/05/2019,0000446919,5.56,Revenue,KILLGERM CHEMICALS LTD,00025894
South Ribble Council,http://statistics.data.gov.uk/doc/local-authority/30UN,Environmental Health,Materials General,4041,PA2 REPLACEMENT CARTRIDGES PACK OF 50 PA2CART,29/05/2019,0000446919,111.88,Revenue,KILLGERM CHEMICALS LTD,00025894
South Ribble Council,http://statistics.data.gov.uk/doc/local-authority/30UN,Environmental Health,Materials General,4041,DEADLINE BROMADIOLONE RAT BLOCKS DEADL120G (PACK OF 72),29/05/2019,0000446919,86.00,Revenue,KILLGERM CHEMICALS LTD,00025894
South Ribble Council,http://statistics.data.gov.uk/doc/local-authority/30UN,Environmental Health,Materials General,4041,SOLO BLOX (SOLOB004K),29/05/2019,0000446919,164.00,Revenue,KILLGERM CHEMICALS LTD,00025894
South Ribble Council,http://statistics.data.gov.uk/doc/local-authority/30UN,Area 3 - Parks/Leyland East West,Grounds Maint Cntrctrs Chgs,4657,King George V - Higher Walton 1x X919000-99 Replacement Seat/Ropes for Flexus (+fitting),01/05/2019,0000446767,"1,310.00",Revenue,KOMPAN LTD,00026026
South Ribble Council,http://statistics.data.gov.uk/doc/local-authority/30UN,Area 3 - Parks/Leyland East West,Grounds Maint Cntrctrs Chgs,4657,Carriage,01/05/2019,0000446767,144.10,Revenue,KOMPAN LTD,00026026
South Ribble Council,http://statistics.data.gov.uk/doc/local-authority/30UN,HR & Communications,Training Expense-Course Fees,1403,LEVEL 3 CIOB CERTIFICATE IN BUILDING CONTROL TECHNICAL ADMINISTRATION - NAME REDACTED (MAY 2019),24/05/2019,0000447334,600.00,Revenue,LABC,00119218
South Ribble Council,http://statistics.data.gov.uk/doc/local-authority/30UN,HR & Communications,Training Expense-Course Fees,1403,LEVEL 3 CIOB CERTIFICATE IN BUILDING CONTROL TECHNICAL ADMINISTRATION  - NAME REDACTED (MAY 2019),24/05/2019,0000447334,600.00,Revenue,LABC,00119218
South Ribble Council,http://statistics.data.gov.uk/doc/local-authority/30UN,Area 2 - Waste Transport/Eastern & Central Teams,Operational Furniture & Equip,4010,1x 20 tonne Air Jak YAJ201,01/05/2019,0000446112,646.38,Revenue,lancashire Bus and Truck Parts Limited,132511
South Ribble Council,http://statistics.data.gov.uk/doc/local-authority/30UN,Area 2 - Waste Transport/Eastern & Central Teams,Operational Furniture & Equip,4010,1x  Tray DRP31,01/05/2019,0000446112,72.19,Revenue,lancashire Bus and Truck Parts Limited,132511
South Ribble Council,http://statistics.data.gov.uk/doc/local-authority/30UN,Area 2 - Waste Transport/Eastern & Central Teams,Operational Furniture & Equip,4010,1 transfer pump TP96,01/05/2019,0000446112,288.08,Revenue,lancashire Bus and Truck Parts Limited,132511
South Ribble Council,http://statistics.data.gov.uk/doc/local-authority/30UN,Area 2 - Waste Transport/Eastern & Central Teams,Operational Furniture & Equip,4010,1x suction pump TP6904,01/05/2019,0000446112,139.33,Revenue,lancashire Bus and Truck Parts Limited,132511
South Ribble Council,http://statistics.data.gov.uk/doc/local-authority/30UN,Area 2 - Waste Transport/Eastern & Central Teams,Materials General,4040,brake caliper - PJ62UCH - JFC 12346,01/05/2019,0000446754,320.00,Revenue,lancashire Bus and Truck Parts Limited,132511
South Ribble Council,http://statistics.data.gov.uk/doc/local-authority/30UN,Area 2 - Waste Transport/Eastern & Central Teams,Materials General,4040,REPAIR AND BRAKE CLEANER VO65KPX JFC 12452,22/05/2019,0000447061,325.92,Revenue,lancashire Bus and Truck Parts Limited,132511
South Ribble Council,http://statistics.data.gov.uk/doc/local-authority/30UN,Area 2 - Waste Transport/Eastern & Central Teams,Materials General,4040,2 x 1000 LTR IBC ADBLUE @ 0.23 PER LTR,15/05/2019,0000447021,460.00,Revenue,LANCASHIRE OILS LTD,131167
South Ribble Council,http://statistics.data.gov.uk/doc/local-authority/30UN,Area 2 - Waste Transport/Eastern & Central Teams,External Contractors Charges,4570,March 2019 - Incineration of Clinical Waste,10/05/2019,0000446947,618.64,Revenue,LANCASHIRE TEACHING FT,00120715
South Ribble Council,http://statistics.data.gov.uk/doc/local-authority/30UN,HR & Communications,Other Local Authorities,4531,PAYROLL SERVICES - APRIL - JUNE 2019,01/05/2019,0000446683,"5,750.00",Revenue,LANCS COUNTY COUNCIL,00041645
South Ribble Council,http://statistics.data.gov.uk/doc/local-authority/30UN,Housing,Cap Grant- Improve Grants,C570,DFG WORKS TO SUPPLY AND INSTALL STAIRLIFT ATADDRESS REDACTED COST 3969.00,03/05/2019,0000446808,"3,969.00",Revenue,LANCS COUNTY COUNCIL,00041645
South Ribble Council,http://statistics.data.gov.uk/doc/local-authority/30UN,Housing,Cap Grant- Improve Grants,C570,DFG WORKS TO SUPPLY AND INSTALL STAIRLIFT AT ADDRESS REDACTED AS PER QUOTE SUPPLIED OF 2969.00,08/05/2019,0000446917,"2,969.00",Revenue,LANCS COUNTY COUNCIL,00041645
South Ribble Council,http://statistics.data.gov.uk/doc/local-authority/30UN,Housing,Cap Grant- Improve Grants,C570,DFG WORKS FOR ADDRESS REDACTED - SUPPLY AND INSTALLATION OF CLOSOMAT COST 4085.00,17/05/2019,0000447082,"4,085.00",Revenue,LANCS COUNTY COUNCIL,00041645
South Ribble Council,http://statistics.data.gov.uk/doc/local-authority/30UN,Area 2 - Waste Transport/Eastern & Central Teams,Contractors Charges 5,5412,"Quarter 4 Disposal Fee, Landfill Tax & 5% Admin Fee",22/05/2019,0000447197,"54,753.27",Revenue,LANCS COUNTY COUNCIL,00041645
South Ribble Council,http://statistics.data.gov.uk/doc/local-authority/30UN,Legal,Other Local Authorities,4530,LAND CHARGES - APRIL 2019,22/05/2019,0000447291,899.00,Revenue,LANCS COUNTY COUNCIL,00041645
South Ribble Council,http://statistics.data.gov.uk/doc/local-authority/30UN,Area 2 - Waste Transport/Eastern & Central Teams,Materials General,4040,"1 air dryer and valve, PJ62 UCG, JFC12468 (NAME REDACTED)",10/05/2019,0000446958,403.00,Revenue,LANCS DAF,00026424
South Ribble Council,http://statistics.data.gov.uk/doc/local-authority/30UN,Planning,Printing,4125,"Lease rental for the period 11-6-2019 to 10-9-2019",01/05/2019,0000446803,"1,426.25",Revenue,LDF FINANCE No1 LTD,131373
South Ribble Council,http://statistics.data.gov.uk/doc/local-authority/30UN,Housing,Capital Expenditure,C230,"DESIGN, PLANNING, BUILDING REGS FOR CHG OF STATION ROAD BUILDING TO FLAT+OFFICE. COST 2940.00+VAT",22/05/2019,0000447232,"1,890.00",Revenue,LEE MCGREGOR LMC ARCHITECTURE LTD,132806
South Ribble Council,http://statistics.data.gov.uk/doc/local-authority/30UN,Democratic Services,Other Misc,4421,"Use of the venue for the Local Elections on Thursday 2 May 2019.Access is required from approx. 6:15 am until 10:15 pm.  ",15/05/2019,0000446918,250.00,Revenue,LEYLAND BAPTIST CHURCH,00048758
South Ribble Council,http://statistics.data.gov.uk/doc/local-authority/30UN,Democratic Services,Other Misc,4421,"Use of the venue for the Local Elections on Thursday 2 May 2019.Access is required from approx. 6:15 am until 10:15 pm.  ",15/05/2019,0000446872,300.00,Revenue,LEYLAND MASONIC HALL ASSOC,00060189
South Ribble Council,http://statistics.data.gov.uk/doc/local-authority/30UN,Democratic Services,Other Misc,4421,"Use of the venue for the Local Elections on Thursday 2 May 2019.Access is required from approx. 6:15 am until 10:15 pm. ",15/05/2019,0000446873,282.00,Revenue,LEYLAND METHODIST CHURCH,130071
South Ribble Council,http://statistics.data.gov.uk/doc/local-authority/30UN,Revenues Plus,Parish Precepts,4870,little hoole parish precepts,15/05/2019,0000447047,"22,500.00",Revenue,LITTLE HOOLE PARISH COUNCIL,00026709
South Ribble Council,http://statistics.data.gov.uk/doc/local-authority/30UN,Revenues Plus,Parish Precepts,4870,longton parish precept,17/05/2019,0000447043,"116,000.00",Revenue,LONGTON PARISH COUNCIL,00026673
South Ribble Council,http://statistics.data.gov.uk/doc/local-authority/30UN,Area 3 - Parks/Leyland East West,Grounds Maint Cntrctrs Chgs,4657,hardwoodchip PO grn`d in full inerror,24/05/2019,0000446975,"1,341.25",Revenue,M & B Surfaces,132021
South Ribble Council,http://statistics.data.gov.uk/doc/local-authority/30UN,Area 3 - Parks/Leyland East West,Grounds Maint Cntrctrs Chgs,4657,hardwoodchip po grn`d in full in error,24/05/2019,0000446978,"1,341.25",Revenue,M & B Surfaces,132021
South Ribble Council,http://statistics.data.gov.uk/doc/local-authority/30UN,Area 3 - Parks/Leyland East West,Grounds Maint Cntrctrs Chgs,4657,Please provide 185m Hardwood Chip to outside of the children`s playground on Worden Park. Delivery Date 29/04/2019,24/05/2019,0000446979,"1,341.25",Revenue,M & B Surfaces,132021
South Ribble Council,http://statistics.data.gov.uk/doc/local-authority/30UN,Area 3 - Parks/Leyland East West,Grounds Maint Cntrctrs Chgs,4657,Please provide 185m Hardwood Chip to outside of the children`s playground on Worden Park. Delivery Date 29/04/2019,24/05/2019,0000446980,"1,341.25",Revenue,M & B Surfaces,132021
South Ribble Council,http://statistics.data.gov.uk/doc/local-authority/30UN,Area 3 - Parks/Leyland East West,Grounds Maint Cntrctrs Chgs,4657,Please provide 185m Hardwood Chip to outside of the children`s playground on Worden Park. Delivery Date 29/04/2019,24/05/2019,0000446983,"1,341.25",Revenue,M & B Surfaces,132021
South Ribble Council,http://statistics.data.gov.uk/doc/local-authority/30UN,Area 3 - Parks/Leyland East West,Materials General,4040,"20T of 20mm of dust to limestone.Delivery to Farington Lodges car park, Lodge Lane PR25 6RA.",03/05/2019,0000446838,395.60,Revenue,M C & M A STEWART HAULAGE LTD,00035567
South Ribble Council,http://statistics.data.gov.uk/doc/local-authority/30UN,Housing,Cap Grant- Improve Grants,C570,DFG WORKS FOR LEVEL ACCESS BATHROOM AT ADDRESS REDACTED. New progress property the grant is 2232.00,17/05/2019,0000447111,"2,232.00",Revenue,MAHONEY CONTRACTORS LTD,131271
South Ribble Council,http://statistics.data.gov.uk/doc/local-authority/30UN,Housing,Cap Grant- Improve Grants,C570,DFG WORKS FOR LEVEL ACCESS BATHROOM AT ADDRESS REDACTED the grant is 2745.00,24/05/2019,0000447313,"2,745.00",Revenue,MAHONEY CONTRACTORS LTD,131271
South Ribble Council,http://statistics.data.gov.uk/doc/local-authority/30UN,Neighbourhood Admin & Support,Materials General,4040,GEORGE STREET,22/05/2019,0000447041,84.00,Revenue,Main Street Signs Ltd,131922
South Ribble Council,http://statistics.data.gov.uk/doc/local-authority/30UN,Neighbourhood Admin & Support,Materials General,4040,ST ANNE`S ROAD,22/05/2019,0000447041,164.00,Revenue,Main Street Signs Ltd,131922
South Ribble Council,http://statistics.data.gov.uk/doc/local-authority/30UN,Neighbourhood Admin & Support,Materials General,4040,ST MARGARET`S ROAD,22/05/2019,0000447041,180.00,Revenue,Main Street Signs Ltd,131922
South Ribble Council,http://statistics.data.gov.uk/doc/local-authority/30UN,Neighbourhood Admin & Support,Materials General,4040,LEVER HOUSE LANE,22/05/2019,0000447041,132.00,Revenue,Main Street Signs Ltd,131922
South Ribble Council,http://statistics.data.gov.uk/doc/local-authority/30UN,Neighbourhood Admin & Support,Materials General,4040,BRISTOL AVENUE,22/05/2019,0000447041,43.00,Revenue,Main Street Signs Ltd,131922
South Ribble Council,http://statistics.data.gov.uk/doc/local-authority/30UN,Neighbourhood Admin & Support,Materials General,4040,CROWN STREET,22/05/2019,0000447041,11.00,Revenue,Main Street Signs Ltd,131922
South Ribble Council,http://statistics.data.gov.uk/doc/local-authority/30UN,Neighbourhood Admin & Support,Materials General,4040,BASHALL GROVE  T,22/05/2019,0000447041,45.00,Revenue,Main Street Signs Ltd,131922
South Ribble Council,http://statistics.data.gov.uk/doc/local-authority/30UN,Neighbourhood Admin & Support,Materials General,4040,GRASMERE AVENUE,22/05/2019,0000447041,88.00,Revenue,Main Street Signs Ltd,131922
South Ribble Council,http://statistics.data.gov.uk/doc/local-authority/30UN,Neighbourhood Admin & Support,Materials General,4040,KENTMERE AVENUE,22/05/2019,0000447041,88.00,Revenue,Main Street Signs Ltd,131922
South Ribble Council,http://statistics.data.gov.uk/doc/local-authority/30UN,Neighbourhood Admin & Support,Materials General,4040,WINDERMERE AVENUE,22/05/2019,0000447041,92.00,Revenue,Main Street Signs Ltd,131922
South Ribble Council,http://statistics.data.gov.uk/doc/local-authority/30UN,Neighbourhood Admin & Support,Materials General,4040,BOW LANE,22/05/2019,0000447041,37.00,Revenue,Main Street Signs Ltd,131922
South Ribble Council,http://statistics.data.gov.uk/doc/local-authority/30UN,Neighbourhood Admin & Support,Materials General,4040,BARN HEY DRIVE,22/05/2019,0000447041,84.00,Revenue,Main Street Signs Ltd,131922
South Ribble Council,http://statistics.data.gov.uk/doc/local-authority/30UN,Neighbourhood Admin & Support,Materials General,4040,CARRIAGE CHARGE,22/05/2019,0000447041,69.50,Revenue,Main Street Signs Ltd,131922
South Ribble Council,http://statistics.data.gov.uk/doc/local-authority/30UN,Property Services,Rep & Maint Premises,2020,2019 / 2020 annual contract for gutter cleaning at Moss Side Depot,22/05/2019,0000447269,199.65,Revenue,MAINCOAT LTD,00099244
South Ribble Council,http://statistics.data.gov.uk/doc/local-authority/30UN,Property Services,Rep & Maint Premises,2020,2019 / 2020 annual contract for gutter cleaning at Leyland market,22/05/2019,0000447269,118.25,Revenue,MAINCOAT LTD,00099244
South Ribble Council,http://statistics.data.gov.uk/doc/local-authority/30UN,Property Services,Rep & Maint Premises,2020,2019 / 2020 annual contract for gutter cleaning at Bamber Bridge Community Centre,22/05/2019,0000447269,97.90,Revenue,MAINCOAT LTD,00099244
South Ribble Council,http://statistics.data.gov.uk/doc/local-authority/30UN,Property Services,Rep & Maint Premises,2020,2019 / 2020 annual contract for gutter cleaning at Higher Walton Community Centre,22/05/2019,0000447269,97.90,Revenue,MAINCOAT LTD,00099244
South Ribble Council,http://statistics.data.gov.uk/doc/local-authority/30UN,Property Services,Rep & Maint Premises,2020,2019 / 2020 annual contract for gutter cleaning at Moss Side Community Centre,22/05/2019,0000447269,97.90,Revenue,MAINCOAT LTD,00099244
South Ribble Council,http://statistics.data.gov.uk/doc/local-authority/30UN,Property Services,Rep & Maint Premises,2020,2019 / 2020 annual contract for gutter cleaning at Leyland Museum,22/05/2019,0000447269,97.90,Revenue,MAINCOAT LTD,00099244
South Ribble Council,http://statistics.data.gov.uk/doc/local-authority/30UN,Property Services,Rep & Maint Premises,2020,2019 / 2020 annual contract for gutter cleaning at Longton Brickcroft,22/05/2019,0000447269,118.25,Revenue,MAINCOAT LTD,00099244
South Ribble Council,http://statistics.data.gov.uk/doc/local-authority/30UN,Property Services,Rep & Maint Premises,2020,2019 / 2020 annual contract for gutter cleaning at Leyland Leisure Centre,22/05/2019,0000447269,199.65,Revenue,MAINCOAT LTD,00099244
South Ribble Council,http://statistics.data.gov.uk/doc/local-authority/30UN,Property Services,Rep & Maint Premises,2020,2019 / 2020 annual contract for gutter cleaning at Bamber Bridge Leisure Centre,22/05/2019,0000447269,199.65,Revenue,MAINCOAT LTD,00099244
South Ribble Council,http://statistics.data.gov.uk/doc/local-authority/30UN,Property Services,Rep & Maint Premises,2020,2019 / 2020 annual contract for gutter cleaning at Penwortham Leisure Centre,22/05/2019,0000447269,199.65,Revenue,MAINCOAT LTD,00099244
South Ribble Council,http://statistics.data.gov.uk/doc/local-authority/30UN,Property Services,Rep & Maint Premises,2020,2019 / 2020 annual contract for gutter cleaning at South Ribble Tennis Centre,22/05/2019,0000447269,199.65,Revenue,MAINCOAT LTD,00099244
South Ribble Council,http://statistics.data.gov.uk/doc/local-authority/30UN,Property Services,Rep & Maint Premises,2020,2019 / 2020 annual contract for gutter cleaning at the Civic Centre,22/05/2019,0000447269,97.90,Revenue,MAINCOAT LTD,00099244
South Ribble Council,http://statistics.data.gov.uk/doc/local-authority/30UN,Property Services,Rep & Maint Premises,2020,2019 / 2020 annual contract for gutter cleaning at Carr Street Community Centre,22/05/2019,0000447269,97.90,Revenue,MAINCOAT LTD,00099244
South Ribble Council,http://statistics.data.gov.uk/doc/local-authority/30UN,Property Services,Rep & Maint Premises,2020,2019 / 2020 annual contract for gutter cleaning at Holland House Farm,22/05/2019,0000447269,77.55,Revenue,MAINCOAT LTD,00099244
South Ribble Council,http://statistics.data.gov.uk/doc/local-authority/30UN,Property Services,Rep & Maint Premises,2020,"2019 / 2020 annual contract for gutter cleaning, Crossroads & Playground toilets Worden Park/Withy Grove & Hope Tce toilets",22/05/2019,0000447269,253.00,Revenue,MAINCOAT LTD,00099244
South Ribble Council,http://statistics.data.gov.uk/doc/local-authority/30UN,Property Services,Rep & Maint Premises,2020,2019 / 2020 annual contract for gutter cleaning at Gregson Lane Sports Pavilion,22/05/2019,0000447269,77.50,Revenue,MAINCOAT LTD,00099244
South Ribble Council,http://statistics.data.gov.uk/doc/local-authority/30UN,Property Services,Rep & Maint Premises,2020,2019 / 2020 annual contract for gutter cleaning at Hern Avenue & St Cuthbert`s Pavilions,22/05/2019,0000447269,77.55,Revenue,MAINCOAT LTD,00099244
South Ribble Council,http://statistics.data.gov.uk/doc/local-authority/30UN,Property Services,Rep & Maint Premises,2020,2019 / 2020 annual contract for gutter cleaning at Withy Grove & Holme Pavilions,22/05/2019,0000447269,77.55,Revenue,MAINCOAT LTD,00099244
South Ribble Council,http://statistics.data.gov.uk/doc/local-authority/30UN,Property Services,Rep & Maint Premises,2020,2019 / 2020 annual contract for gutter cleaning at Hurst Grange & Kingsfold Pavilions,22/05/2019,0000447269,77.55,Revenue,MAINCOAT LTD,00099244
South Ribble Council,http://statistics.data.gov.uk/doc/local-authority/30UN,Property Services,Rep & Maint Premises,2020,2019 / 2020 annual contract for gutter cleaning at Longton Pavilion,22/05/2019,0000447269,77.55,Revenue,MAINCOAT LTD,00099244
South Ribble Council,http://statistics.data.gov.uk/doc/local-authority/30UN,Property Services,Rep & Maint Premises,2020,2019 / 2020 annual contract for gutter cleaning at Hutton Pavilion,22/05/2019,0000447269,77.55,Revenue,MAINCOAT LTD,00099244
South Ribble Council,http://statistics.data.gov.uk/doc/local-authority/30UN,Property Services,Rep & Maint Premises,2020,2019 / 2020 annual contract for gutter cleaning at Much Hoole Pavilion,22/05/2019,0000447269,77.55,Revenue,MAINCOAT LTD,00099244
South Ribble Council,http://statistics.data.gov.uk/doc/local-authority/30UN,Property Services,Rep & Maint Premises,2020,2019 / 2020 annual contract for gutter cleaning at Worden park Pavilions,22/05/2019,0000447269,77.55,Revenue,MAINCOAT LTD,00099244
South Ribble Council,http://statistics.data.gov.uk/doc/local-authority/30UN,Property Services,Rep & Maint Premises,2020,2019 / 2020 annual contract for gutter cleaning at Moss Side Pavilion,22/05/2019,0000447269,78.65,Revenue,MAINCOAT LTD,00099244
South Ribble Council,http://statistics.data.gov.uk/doc/local-authority/30UN,Property Services,Rep & Maint Premises,2020,"2019 / 2020 annual contract for gutter cleaning at Worden Arts centre, Coffee shop, Derby Wing, Bungalow, Bothy and others",22/05/2019,0000447269,317.90,Revenue,MAINCOAT LTD,00099244
South Ribble Council,http://statistics.data.gov.uk/doc/local-authority/30UN,Property Services,Rep & Maint Premises,2020,"2019 / 2020 annual contract for gutter inspections  at North Lodge, Craft units, greenhouse & depot at Worden Park",22/05/2019,0000447269,118.25,Revenue,MAINCOAT LTD,00099244
South Ribble Council,http://statistics.data.gov.uk/doc/local-authority/30UN,Property Services,Rep & Maint Premises,2020,2019 / 2020 annual gutter inspections at 12x ADDRESS REDACTED.,22/05/2019,0000447270,457.00,Revenue,MAINCOAT LTD,00099244
South Ribble Council,http://statistics.data.gov.uk/doc/local-authority/30UN,Property Services,Rep & Maint Premises,2020,"2019 / 2020 annual gutter inspections at Heaton Street, Leyland",22/05/2019,0000447270,118.25,Revenue,MAINCOAT LTD,00099244
South Ribble Council,http://statistics.data.gov.uk/doc/local-authority/30UN,Property Services,Rep & Maint Premises,2020,"2019 / 2020 annual gutter inspections at Middleforth industrial estate, Penwortham",22/05/2019,0000447270,118.25,Revenue,MAINCOAT LTD,00099244
South Ribble Council,http://statistics.data.gov.uk/doc/local-authority/30UN,Property Services,Rep & Maint Premises,2020,"2019 / 2020 annual gutter inspections at ADDRESS REDACTED, Leyland",22/05/2019,0000447270,118.25,Revenue,MAINCOAT LTD,00099244
South Ribble Council,http://statistics.data.gov.uk/doc/local-authority/30UN,Property Services,Rep & Maint Premises,2020,2019 / 2020 annual gutter inspections at 9x ADDRESS REDACTED,22/05/2019,0000447270,199.65,Revenue,MAINCOAT LTD,00099244
South Ribble Council,http://statistics.data.gov.uk/doc/local-authority/30UN,Property Services,Rep & Maint Premises,2020,2019 / 2020 annual gutter inspections at units 1 to 9 Forward Industrial Estate,22/05/2019,0000447270,118.25,Revenue,MAINCOAT LTD,00099244
South Ribble Council,http://statistics.data.gov.uk/doc/local-authority/30UN,Property Services,Rep & Maint Premises,2020,2019 / 2020 annual gutter inspections at ADDRESS REDACTED,22/05/2019,0000447270,118.25,Revenue,MAINCOAT LTD,00099244
South Ribble Council,http://statistics.data.gov.uk/doc/local-authority/30UN,Property Services,Rep & Maint Premises,2020,2019 / 2020 annual gutter inspections at 7x ADDRESS REDACTED,22/05/2019,0000447270,158.95,Revenue,MAINCOAT LTD,00099244
South Ribble Council,http://statistics.data.gov.uk/doc/local-authority/30UN,Property Services,Rep & Maint Premises,2020,2019 / 2020 annual gutter inspections at ADDRESS REDACTED,22/05/2019,0000447270,77.55,Revenue,MAINCOAT LTD,00099244
South Ribble Council,http://statistics.data.gov.uk/doc/local-authority/30UN,Property Services,Rep & Maint Premises,2020,2019 / 2020 annual gutter inspections at ADDRESS REDACTED,22/05/2019,0000447270,77.55,Revenue,MAINCOAT LTD,00099244
South Ribble Council,http://statistics.data.gov.uk/doc/local-authority/30UN,Property Services,Rep & Maint Premises,2020,"2019 / 2020 annual gutter inspections at units 1 - 6 & 38 Momentum Place, South Rings, Bamber Bridge",22/05/2019,0000447270,195.80,Revenue,MAINCOAT LTD,00099244
South Ribble Council,http://statistics.data.gov.uk/doc/local-authority/30UN,Information Services,Peripherals,4248,Annual support & maintenance  for Siemans HiPath 4000 & Tiger Call Logging for period 01/05/19 - 30/04/20,22/05/2019,0000447264,"8,100.63",Revenue,Maintel Europe Ltd,132500
South Ribble Council,http://statistics.data.gov.uk/doc/local-authority/30UN,Information Services,Peripherals,4248,Annual support & maintenance  for Siemans HiPath 4000 & Tiger Call Logging for period 01/05/19 - 30/04/20,22/05/2019,0000447272,"1,759.61",Revenue,Maintel Europe Ltd,132500
South Ribble Council,http://statistics.data.gov.uk/doc/local-authority/30UN,Property Services,Rep & Maint Fixed Plant,2035,2019 / 2020 annual fees for the maintenance of the intruder alarm at Longton Brickcroft,10/05/2019,0000446323,250.00,Revenue,Marlowe Fire & Security,132473
South Ribble Council,http://statistics.data.gov.uk/doc/local-authority/30UN,Property Services,Rep & Maint Fixed Plant,2035,2019 / 2020 annual fees for the monitoring of the redcare line at Longton Brickcroft,10/05/2019,0000446323,350.00,Revenue,Marlowe Fire & Security,132473
South Ribble Council,http://statistics.data.gov.uk/doc/local-authority/30UN,Area 1 - Penwortham Western Parishes,Capital Expenditure,C230,WORKS - AS PER YOUR QUOTATION QU-0473 DATED 28.1.19,22/05/2019,0000447070,"9,693.42",Revenue,McNally Electrical (Yorkshire) Ltd,132762
South Ribble Council,http://statistics.data.gov.uk/doc/local-authority/30UN,Area 1 - Penwortham Western Parishes,Capital Expenditure,C230,WORKS - AS PER YOUR QUOTE QU-0474 DATED 28.1.19,22/05/2019,0000447083,"8,070.82",Revenue,McNally Electrical (Yorkshire) Ltd,132762
South Ribble Council,http://statistics.data.gov.uk/doc/local-authority/30UN,Neighbourhood Admin & Support,Capital Expenditure,C230,Supply 2 boxes 1200 x 600 ceiling tiles,15/05/2019,0000446835,100.80,Revenue,MODULAR CEILINGS & INTERIORS LTD,00105989
South Ribble Council,http://statistics.data.gov.uk/doc/local-authority/30UN,Neighbourhood Admin & Support,Capital Expenditure,C230,Supply 2 boxes ceiling tiles 600 x 600,15/05/2019,0000446835,70.56,Revenue,MODULAR CEILINGS & INTERIORS LTD,00105989
South Ribble Council,http://statistics.data.gov.uk/doc/local-authority/30UN,Neighbourhood Admin & Support,Capital Expenditure,C230,Supply 1 No main grid section,15/05/2019,0000446835,4.50,Revenue,MODULAR CEILINGS & INTERIORS LTD,00105989
South Ribble Council,http://statistics.data.gov.uk/doc/local-authority/30UN,Neighbourhood Admin & Support,Capital Expenditure,C230,Supply 50 No 600mm cross t grid section,15/05/2019,0000446835,42.50,Revenue,MODULAR CEILINGS & INTERIORS LTD,00105989
South Ribble Council,http://statistics.data.gov.uk/doc/local-authority/30UN,Neighbourhood Admin & Support,Capital Expenditure,C230,Labour to fit new main grid and approx. 50 No 600 cross tees to facilitate installation of new light fittings,15/05/2019,0000446835,180.00,Revenue,MODULAR CEILINGS & INTERIORS LTD,00105989
South Ribble Council,http://statistics.data.gov.uk/doc/local-authority/30UN,Legal,Legal,4821,REVIEWING THE DRAFT OFFICER REPORT (TEST TRACK) - 2 HOURS - 20/5/2019,24/05/2019,0000447335,450.00,Revenue,MR IAN PONTER,131194
South Ribble Council,http://statistics.data.gov.uk/doc/local-authority/30UN,Homelessness,Contributions,4730,2 months rent,22/05/2019,0000447194,"1,200.00",Revenue,NAMES REDACTED,132847
South Ribble Council,http://statistics.data.gov.uk/doc/local-authority/30UN,Revenues Plus,Parish Precepts,4870,much hoole parish precepts,15/05/2019,0000447044,"8,604.00",Revenue,MUCH HOOLE PARISH COUNCIL,00028383
South Ribble Council,http://statistics.data.gov.uk/doc/local-authority/30UN,HR & Communications,Training Expense-Course Fees,1402,6x NAME REDACTED TO ATTEND `PA1 AND PA6 (HERBICIDE STORAGE AT MOSS SIDE DEPOT 23 AND 24 APRIL 2019,01/05/2019,0000446592,"2,160.00",Revenue,MYERSCOUGH COLLEGE,00026453
South Ribble Council,http://statistics.data.gov.uk/doc/local-authority/30UN,Information Services,Peripherals,4241,"Dell Latitude 5590 - 15.6``, as per quote 181261-1",15/05/2019,0000446965,690.00,Revenue,MYPREMIER LTD,130091
South Ribble Council,http://statistics.data.gov.uk/doc/local-authority/30UN,Information Services,Peripherals,4241,"6 x Apple iPad Pro @ 590.00 each and 6 x Smart Keyboard @ 139.50 each, as per quote 181543-1",17/05/2019,0000447026,"4,377.00",Revenue,MYPREMIER LTD,130091
South Ribble Council,http://statistics.data.gov.uk/doc/local-authority/30UN,Area 2 - Waste Transport/Eastern & Central Teams,External Contractors Charges,4570,SERVICE WASH VO65 KRE JFC12204,10/05/2019,0000446928,65.00,Revenue,NAYLORS TRANSPORT (LEYLAND) ltd,00114828
South Ribble Council,http://statistics.data.gov.uk/doc/local-authority/30UN,Area 2 - Waste Transport/Eastern & Central Teams,External Contractors Charges,4570,SERVICE WASH VO65 KPY JFC12205,10/05/2019,0000446928,65.00,Revenue,NAYLORS TRANSPORT (LEYLAND) ltd,00114828
South Ribble Council,http://statistics.data.gov.uk/doc/local-authority/30UN,Area 2 - Waste Transport/Eastern & Central Teams,External Contractors Charges,4570,SERVICE WASH VO65 KPZ JFC12206,10/05/2019,0000446928,65.00,Revenue,NAYLORS TRANSPORT (LEYLAND) ltd,00114828
South Ribble Council,http://statistics.data.gov.uk/doc/local-authority/30UN,Area 2 - Waste Transport/Eastern & Central Teams,External Contractors Charges,4570,SERVICE WASH PJ62 UCL JFC12207,10/05/2019,0000446928,65.00,Revenue,NAYLORS TRANSPORT (LEYLAND) ltd,00114828
South Ribble Council,http://statistics.data.gov.uk/doc/local-authority/30UN,Area 2 - Waste Transport/Eastern & Central Teams,External Contractors Charges,4570,SERVICE WASH VU58JXH JFC12208,10/05/2019,0000446928,65.00,Revenue,NAYLORS TRANSPORT (LEYLAND) ltd,00114828
South Ribble Council,http://statistics.data.gov.uk/doc/local-authority/30UN,Area 2 - Waste Transport/Eastern & Central Teams,External Contractors Charges,4570,SERVICE WASH MX04 YNL JFC12209,10/05/2019,0000446928,65.00,Revenue,NAYLORS TRANSPORT (LEYLAND) ltd,00114828
South Ribble Council,http://statistics.data.gov.uk/doc/local-authority/30UN,Area 2 - Waste Transport/Eastern & Central Teams,External Contractors Charges,4570,SERVICE WASH VO65 KRF JFC12210,10/05/2019,0000446928,65.00,Revenue,NAYLORS TRANSPORT (LEYLAND) ltd,00114828
South Ribble Council,http://statistics.data.gov.uk/doc/local-authority/30UN,Area 2 - Waste Transport/Eastern & Central Teams,External Contractors Charges,4570,SERVICE WASH PO13 UUM JFC12212,10/05/2019,0000446928,65.00,Revenue,NAYLORS TRANSPORT (LEYLAND) ltd,00114828
South Ribble Council,http://statistics.data.gov.uk/doc/local-authority/30UN,Area 2 - Waste Transport/Eastern & Central Teams,External Contractors Charges,4570,SERVICE WASH VN10 DLD JFC1221,10/05/2019,0000446928,65.00,Revenue,NAYLORS TRANSPORT (LEYLAND) ltd,00114828
South Ribble Council,http://statistics.data.gov.uk/doc/local-authority/30UN,Area 2 - Waste Transport/Eastern & Central Teams,External Contractors Charges,4570,SERVICE WASH VU58 JXK JFC12213,10/05/2019,0000446928,65.00,Revenue,NAYLORS TRANSPORT (LEYLAND) ltd,00114828
South Ribble Council,http://statistics.data.gov.uk/doc/local-authority/30UN,Area 2 - Waste Transport/Eastern & Central Teams,External Contractors Charges,4570,SERVICE WASH RV14 DTZ JFC12249,10/05/2019,0000446928,65.00,Revenue,NAYLORS TRANSPORT (LEYLAND) ltd,00114828
South Ribble Council,http://statistics.data.gov.uk/doc/local-authority/30UN,Democratic Services,Other Misc,4421,"Use of the venue for the Local Elections on Thursday 2 May 2019.Access is required from approx. 6:15 am until 10:15 pm.  ",22/05/2019,0000447222,267.75,Revenue,NEW LONGTON VILLAGE HALL,00080088
South Ribble Council,http://statistics.data.gov.uk/doc/local-authority/30UN,Neighbourhood Admin & Support,Operational Furniture & Equip,4010,REPLACE MOTOR IN GAS OIL PUMP,03/05/2019,0000446830,385.00,Revenue,NIXON PUMPS,130367
South Ribble Council,http://statistics.data.gov.uk/doc/local-authority/30UN,Neighbourhood Admin & Support,External Contractors Charges,4570,FUEL PUMP MAINTENANCE CONTRACT 1.3.19 - 29.2.20 2 VISITS (CALIBRATION AND INSPECTION) WITH CERT SENT,10/05/2019,0000446939,780.00,Revenue,NIXON PUMPS,130367
South Ribble Council,http://statistics.data.gov.uk/doc/local-authority/30UN,Property Services,Rep & Maint Premises,2020,Please undertake a service to the pumps in the pumping station at Worden Park,03/05/2019,0000446851,275.00,Revenue,NORTH WEST MAINTENANCE SERVICES LTD,00114763
South Ribble Council,http://statistics.data.gov.uk/doc/local-authority/30UN,Housing,Subs to Statutory Bodies,4720,Full Membership to Northern Housing Consortium (01 April 2019 - 31 March 2020)  910 plus VAT 182 TOTAL 1092.00,01/05/2019,0000446742,910.00,Revenue,NORTHERN HOUSING CONSORTIUM,00046747
South Ribble Council,http://statistics.data.gov.uk/doc/local-authority/30UN,Area 1 - Penwortham Western Parishes,Professional Fees,4514,DEPLOYMENT OF OFFICERS APRIL 2019,22/05/2019,0000447160,"1,412.17",Revenue,NSL LTD,00116868
South Ribble Council,http://statistics.data.gov.uk/doc/local-authority/30UN,Area 1 - Penwortham Western Parishes,Other Misc,4855,CASH COLLECTION AND RINGO TRANSACTIONS APRIL 2019,22/05/2019,0000447160,322.48,Revenue,NSL LTD,00116868
South Ribble Council,http://statistics.data.gov.uk/doc/local-authority/30UN,Area 1 - Penwortham Western Parishes,Other Misc,4855,RINGO CONVENIENCE CHARGE APRIL 2019,22/05/2019,0000447160,178.18,Revenue,NSL LTD,00116868
South Ribble Council,http://statistics.data.gov.uk/doc/local-authority/30UN,Information Services,Peripherals,4247,SystemCare Service for period 01/04/19 - 30/06/19,01/05/2019,0000446768,"7,487.87",Revenue,NVIRON LTD,00028781
South Ribble Council,http://statistics.data.gov.uk/doc/local-authority/30UN,Property Services,Rep & Maint Premises,2020,2019/2020  Annual Inspection and test of the Height Safety System (Fall Arrest System) at the Civic Centre PR25 1DH ,17/05/2019,0000447087,295.00,Revenue,OMEGA RED GROUP LTD,00021869
South Ribble Council,http://statistics.data.gov.uk/doc/local-authority/30UN,Property Services,Professional Fees,4510,Prepare a pre-acquisition Building survey and Environmental survey of the property. Visiting site,01/05/2019,0000446698,"5,710.00",Revenue,Paragon Building Consultancy Limited,132775
South Ribble Council,http://statistics.data.gov.uk/doc/local-authority/30UN,Housing,Cap Expend Other,C750,DFG WORKS TO BATHROOM ATADDRESS REDACTED CLIENT CONTRIBUTION 2510.21 TOTAL GRANT 2028.79,10/05/2019,0000446437,852.52,Revenue,Paul Rothwell and Sons,132741
South Ribble Council,http://statistics.data.gov.uk/doc/local-authority/30UN,Housing,Cap Grant- Improve Grants,C570,DFG WORKS TO BATHROOM AT ADDRESS REDACTED CLIENT CONTRIBUTION 2510.21 GRANT APPROVED 2028.79,10/05/2019,0000446437,"1,176.27",Revenue,Paul Rothwell and Sons,132741
South Ribble Council,http://statistics.data.gov.uk/doc/local-authority/30UN,Area 3 - Parks/Leyland East West,Capital Expenditure,C230,Painting at Moss Side Depot Ground floor and First floor areas,22/05/2019,0000447088,"6,430.00",Revenue,PDP PROPERTY SERVICES LTD,00106975
South Ribble Council,http://statistics.data.gov.uk/doc/local-authority/30UN,Neighbourhood Admin & Support,Capital Expenditure,C230,"Building Work at Moss Side Depot FCC Offices - remove stud wall, block door, create reception access. New reception/window. ",22/05/2019,0000447102,"1,880.00",Revenue,PDP PROPERTY SERVICES LTD,00106975
South Ribble Council,http://statistics.data.gov.uk/doc/local-authority/30UN,Revenues Plus,Parish Precepts,4870,penwortham precepts,17/05/2019,0000447045,"170,000.00",Revenue,PENWORTHAM TOWN COUNCIL,00031257
South Ribble Council,http://statistics.data.gov.uk/doc/local-authority/30UN,Shared Financial Services,Professional Fees,4522,gov fee,24/05/2019,0000447161,308.00,Revenue,Personnel Checks,132574
South Ribble Council,http://statistics.data.gov.uk/doc/local-authority/30UN,Shared Financial Services,Professional Fees,4522,admin fee,24/05/2019,0000447161,93.38,Revenue,Personnel Checks,132574
South Ribble Council,http://statistics.data.gov.uk/doc/local-authority/30UN,Information Services,Peripherals,4243,"Microsoft Licenses, Enterprise Agreement, Year 1 of 3, for period 01/04/19 - 31/03/20",10/05/2019,0000446934,"69,176.51",Revenue,PHOENIX SOFTWARE LTD,00064279
South Ribble Council,http://statistics.data.gov.uk/doc/local-authority/30UN,Information Services,Peripherals,4243,"Microsoft Licenses, Enterprise Agreement, Year 1 of 3, for period 01/04/19 - 31/03/20",10/05/2019,0000446940,"11,783.99",Revenue,PHOENIX SOFTWARE LTD,00064279
South Ribble Council,http://statistics.data.gov.uk/doc/local-authority/30UN,Area 2 - Waste Transport/Eastern & Central Teams,Materials General,4040,1200l Type 32 Hydraulic oil @ 74ppl,03/05/2019,0000446814,893.18,Revenue,PILKINGTON OILS,00113531
South Ribble Council,http://statistics.data.gov.uk/doc/local-authority/30UN,Area 2 - Waste Transport/Eastern & Central Teams,Materials General,4040,3 x 205l Wash & Wax (Blue) @ 70ppl,08/05/2019,0000446824,430.50,Revenue,PILKINGTON OILS,00113531
South Ribble Council,http://statistics.data.gov.uk/doc/local-authority/30UN,Area 3 - Parks/Leyland East West,Grounds Maint Cntrctrs Chgs,4657,"Re Quotation Ref: PL6916/9057/1Remove existing swing and replace with new making good existing wet pour surface.",22/05/2019,0000447105,"3,288.50",Revenue,PLAY & LEISURE LTD,00032188
South Ribble Council,http://statistics.data.gov.uk/doc/local-authority/30UN,Housing,Cap Expend Other,C750," DFG WORKS BATHROOM AT ADDRESS REDACTED, ACCENT PROPERTY SO 50% PAID VIA H ASSOC, COST 1519.50",08/05/2019,0000446871,"1,519.50",Revenue,Positive Plumbing Solutions Ltd,131562
South Ribble Council,http://statistics.data.gov.uk/doc/local-authority/30UN,Information Services,Stationery,4133,"50,000 sheets Evolution Everyday A4  80gm2500 sheets    Papago Pastels A4 80gm Pink",01/05/2019,0000446710,290.25,Revenue,PREMIER PAPER GROUP LTD,00022606
South Ribble Council,http://statistics.data.gov.uk/doc/local-authority/30UN,Information Services,Stationery,4133,"50,000 sheets Evolution Everyday A4 80gm2000 sheets Premier  Elements Fire White card A4 200gsm",29/05/2019,0000447346,315.20,Revenue,PREMIER PAPER GROUP LTD,00022606
South Ribble Council,http://statistics.data.gov.uk/doc/local-authority/30UN,Homelessness,Peripherals,4272,Tailored package at Woodfield Bamber Bridge Inv 0401/19,22/05/2019,0000447239,754.00,Revenue,PRESTON CARE & REPAIR,130877
South Ribble Council,http://statistics.data.gov.uk/doc/local-authority/30UN,Homelessness,Peripherals,4272,"Tailored security package at Kimberley Street, Coppull Inv 0318/18",22/05/2019,0000447245,"1,600.00",Revenue,PRESTON CARE & REPAIR,130877
South Ribble Council,http://statistics.data.gov.uk/doc/local-authority/30UN,Democratic Services,Other Misc,4424,"GRASS SKIRTS:3,600 - 10 X 25 200 - 23 X 25",17/05/2019,0000447068,"3,038.00",Revenue,PRINT IMAGE NETWORK LTD,00089199
South Ribble Council,http://statistics.data.gov.uk/doc/local-authority/30UN,Homelessness,Professional Fees,4529,"Control centre monitoring01/4/04/19 - 31/03/2020 4875.71 including VAT",01/05/2019,0000446724,"4,063.09",Revenue,PROGRESS HOUSING GRP ref:DNSOU001,00030135
South Ribble Council,http://statistics.data.gov.uk/doc/local-authority/30UN,Area 3 - Parks/Leyland East West,Grounds Maint Cntrctrs Chgs,4657,"Withy GroveQuotation ref 1902.21724 8x roof panels and fixings for tower",01/05/2019,0000446654,"5,926.58",Revenue,PROLUDIC LTD,00083263
South Ribble Council,http://statistics.data.gov.uk/doc/local-authority/30UN,Development Enterprise & Comm Mgnt,Other Misc,485A,"Annual Web Site Hosting1st April 2019 to 31st March 2020 businessinsouthribble.com Cost 600 + VAT",10/05/2019,0000446998,600.00,Revenue,PROTEAN SYSTEMS LIMITED,130003
South Ribble Council,http://statistics.data.gov.uk/doc/local-authority/30UN,Shared Financial Services,Training Expense-Course Fees,1420,credited,22/05/2019,0000447162,730.00,Revenue,QA LIMITED,00113638
South Ribble Council,http://statistics.data.gov.uk/doc/local-authority/30UN,Property Services,Rep & Maint Premises,2020,Please attend the civic centre & Leyland leisure centre to carry out works. Contact NAME REDACTED for access.,22/05/2019,0000447134,630.41,Revenue,Raymond Wood Commercial Ltd T/A LDG Contracts,132127
South Ribble Council,http://statistics.data.gov.uk/doc/local-authority/30UN,Property Services,Other Misc,4421,"Attend ADDRESS REDACTED, 1st May with Coopers Bespoke to collect/install the ramp for the portacabin at Hunters car park",10/05/2019,0000446915,680.00,Revenue,RED ROSE BUILDING MAINTENANCE,00085410
South Ribble Council,http://statistics.data.gov.uk/doc/local-authority/30UN,Healthy Communities,Rep & Maint Premises,2020,Please attend Bamber Bridge Centre to remove the leisure centre sign as agreed with NAME REDACTED,29/05/2019,0000447157,240.00,Revenue,RED ROSE BUILDING MAINTENANCE,00085410
South Ribble Council,http://statistics.data.gov.uk/doc/local-authority/30UN,Healthy Communities,Rep & Maint Premises,2020,mats,29/05/2019,0000447157,478.00,Revenue,RED ROSE BUILDING MAINTENANCE,00085410
South Ribble Council,http://statistics.data.gov.uk/doc/local-authority/30UN,Neighbourhood Admin & Support,Capital Expenditure,C230,"RECONSTRUCTION OF INSPECTION CHAMBERS AT  WORDEN PARK, LEYLAND.",22/05/2019,0000447096,"2,079.00",Revenue,Reid Construction & Civil Engineering Ltd,131544
South Ribble Council,http://statistics.data.gov.uk/doc/local-authority/30UN,Neighbourhood Admin & Support,Capital Expenditure,C230,materials,22/05/2019,0000447096,"3,121.00",Revenue,Reid Construction & Civil Engineering Ltd,131544
South Ribble Council,http://statistics.data.gov.uk/doc/local-authority/30UN,Neighbourhood Admin & Support,Capital Expenditure,C230,E/O works,22/05/2019,0000447096,240.00,Revenue,Reid Construction & Civil Engineering Ltd,131544
South Ribble Council,http://statistics.data.gov.uk/doc/local-authority/30UN,Shared Financial Services,Expenditure not in NCOS,4994,bus rates pool 18/19,22/05/2019,0000447282,"1,818.18",Revenue,Ribble Valley Borough Council,131651
South Ribble Council,http://statistics.data.gov.uk/doc/local-authority/30UN,Information Services,Lease Rental Charges,4036,MODEL EQV5 OFFICE SUITE,24/05/2019,0000447284,"1,492.80",Revenue,RICOH (UK) LTD,00082976
South Ribble Council,http://statistics.data.gov.uk/doc/local-authority/30UN,Information Services,Lease Rental Charges,4036,MAY-JUL 19,24/05/2019,0000447285,334.19,Revenue,RICOH (UK) LTD,00082976
South Ribble Council,http://statistics.data.gov.uk/doc/local-authority/30UN,Information Services,Stationery,413A,FEB-APR 19,24/05/2019,0000447285,155.01,Revenue,RICOH (UK) LTD,00082976
South Ribble Council,http://statistics.data.gov.uk/doc/local-authority/30UN,Information Services,Stationery,413A,FEB-APR 19,24/05/2019,0000447286,"6,321.50",Revenue,RICOH (UK) LTD,00082976
South Ribble Council,http://statistics.data.gov.uk/doc/local-authority/30UN,Information Services,Lease Rental Charges,4036,MAY-JUL 19,24/05/2019,0000447286,"4,638.79",Revenue,RICOH (UK) LTD,00082976
South Ribble Council,http://statistics.data.gov.uk/doc/local-authority/30UN,Democratic Services,Other Misc,4422,1ST ISSUE POSTAL VOTE POSTAGE FOR ELECTION 2 MAY 2019,01/05/2019,0000446705,"7,825.22",Revenue,ROYAL MAIL GROUP PLC,00033543
South Ribble Council,http://statistics.data.gov.uk/doc/local-authority/30UN,Democratic Services,Other Misc,4422,vat,01/05/2019,0000446705,16.50,Revenue,ROYAL MAIL GROUP PLC,00033543
South Ribble Council,http://statistics.data.gov.uk/doc/local-authority/30UN,Democratic Services,Other Misc,4422,"4481 X RESPONSE PLUS SERVICE - 2,312.88 19 X RESPONSE PLUS SERVICE - 9.79",17/05/2019,0000446858,"2,322.67",Revenue,ROYAL MAIL GROUP PLC,00033543
South Ribble Council,http://statistics.data.gov.uk/doc/local-authority/30UN,Democratic Services,Other Misc,4422,ELECTION POSTAL VOTE RETURN POSTAGE,10/05/2019,0000446926,"2,055.38",Revenue,ROYAL MAIL GROUP PLC,00033543
South Ribble Council,http://statistics.data.gov.uk/doc/local-authority/30UN,Democratic Services,Other Misc,4422,"271 X BUSINESS MAIL ADVANCED - (2ND ISSUE) = 135.31 11 X BUSINESS MAIL ADVANCED - (MANUAL) = 6.55",17/05/2019,0000447136,141.86,Revenue,ROYAL MAIL GROUP PLC,00033543
South Ribble Council,http://statistics.data.gov.uk/doc/local-authority/30UN,Democratic Services,Other Misc,4422,"16,498 X BUSINESS MAIL ADVANCED= 7,765.50 81 X INTERNATIONAL STANDARD ON ACC (1ST ISSUE) = 121.50",17/05/2019,0000447136,"7,764.50",Revenue,ROYAL MAIL GROUP PLC,00033543
South Ribble Council,http://statistics.data.gov.uk/doc/local-authority/30UN,Democratic Services,Other Misc,4422,European vote,17/05/2019,0000447136,121.50,Revenue,ROYAL MAIL GROUP PLC,00033543
South Ribble Council,http://statistics.data.gov.uk/doc/local-authority/30UN,Democratic Services,Other Misc,4422,4th may to 11 may 2019,24/05/2019,0000447216,"1,042.40",Revenue,ROYAL MAIL GROUP PLC,00033543
South Ribble Council,http://statistics.data.gov.uk/doc/local-authority/30UN,Planning,Professional Fees,4510,Consultation on 07/2018//1315/FUL at ADDRESS REDACTED.,10/05/2019,0000446463,409.00,Revenue,RSK ADAS Ltd,132221
South Ribble Council,http://statistics.data.gov.uk/doc/local-authority/30UN,Planning,Consultancy Fees,4541,Consultation services regarding ADDRESS REDACTED (planning reference 07/2018/3387/FUL).,10/05/2019,0000446464,"1,925.00",Revenue,RSK ADAS Ltd,132221
South Ribble Council,http://statistics.data.gov.uk/doc/local-authority/30UN,Area 2 - Waste Transport/Eastern & Central Teams,Materials General,4040,"Packer Ram 4 Pins, YP11 CFM, JFC12382 NAME REDACTED",08/05/2019,0000446709,872.23,Revenue,RTS Muni,132454
South Ribble Council,http://statistics.data.gov.uk/doc/local-authority/30UN,Area 2 - Waste Transport/Eastern & Central Teams,Materials General,4040,"SUPPLY PARTS AND LABOUR ON 03/05/2019YP11CFM JFC 12382",10/05/2019,0000446941,"1,032.18",Revenue,RTS Muni,132454
South Ribble Council,http://statistics.data.gov.uk/doc/local-authority/30UN,Regeneration,Capital Expenditure,C230,Maintenance to drainage at West Paddock field,15/05/2019,0000447004,500.00,Revenue,Sapphire Utility Solutions Limited,132824
South Ribble Council,http://statistics.data.gov.uk/doc/local-authority/30UN,Property Services,Energy Costs,2303,dec 18 - apr 19,01/05/2019,0000446596,368.18,Revenue,SCOTTISH HYDRO ELECTRIC,130051
South Ribble Council,http://statistics.data.gov.uk/doc/local-authority/30UN,Property Services,Energy Costs,2303,Mar-19,01/05/2019,0000446603,583.13,Revenue,SCOTTISH HYDRO ELECTRIC,130051
South Ribble Council,http://statistics.data.gov.uk/doc/local-authority/30UN,Property Services,Energy Costs,2303,Mar-19,01/05/2019,0000446605,"3,466.63",Revenue,SCOTTISH HYDRO ELECTRIC,130051
South Ribble Council,http://statistics.data.gov.uk/doc/local-authority/30UN,Property Services,Energy Costs,2303,jan - apr 19,01/05/2019,0000446606,301.50,Revenue,SCOTTISH HYDRO ELECTRIC,130051
South Ribble Council,http://statistics.data.gov.uk/doc/local-authority/30UN,Property Services,Energy Costs,2303,Mar-19,01/05/2019,0000446609,"1,824.64",Revenue,SCOTTISH HYDRO ELECTRIC,130051
South Ribble Council,http://statistics.data.gov.uk/doc/local-authority/30UN,Property Services,Energy Costs,2303,Mar-19,01/05/2019,0000446610,950.09,Revenue,SCOTTISH HYDRO ELECTRIC,130051
South Ribble Council,http://statistics.data.gov.uk/doc/local-authority/30UN,Property Services,Energy Costs,2304,3.4.19-2.5.19,22/05/2019,0000447200,"1,161.20",Revenue,SCOTTISH HYDRO ELECTRIC,130051
South Ribble Council,http://statistics.data.gov.uk/doc/local-authority/30UN,Property Services,Energy Costs,2304,21.12.18-30.03,22/05/2019,0000447202,932.76,Revenue,SCOTTISH HYDRO ELECTRIC,130051
South Ribble Council,http://statistics.data.gov.uk/doc/local-authority/30UN,Property Services,Energy Costs,2304,20/2/19 to 14/5/19,22/05/2019,0000447203,372.16,Revenue,SCOTTISH HYDRO ELECTRIC,130051
South Ribble Council,http://statistics.data.gov.uk/doc/local-authority/30UN,Property Services,Energy Costs,2303,1.4.19-30.4.19,22/05/2019,0000447204,944.14,Revenue,SCOTTISH HYDRO ELECTRIC,130051
South Ribble Council,http://statistics.data.gov.uk/doc/local-authority/30UN,Property Services,Energy Costs,2303,1.4.19-30.4.19,22/05/2019,0000447208,540.08,Revenue,SCOTTISH HYDRO ELECTRIC,130051
South Ribble Council,http://statistics.data.gov.uk/doc/local-authority/30UN,Property Services,Energy Costs,2303,1.4.19-30.4.19,22/05/2019,0000447209,"3,285.70",Revenue,SCOTTISH HYDRO ELECTRIC,130051
South Ribble Council,http://statistics.data.gov.uk/doc/local-authority/30UN,Property Services,Energy Costs,2303,1.4.19-30.4.19,22/05/2019,0000447215,"1,636.23",Revenue,SCOTTISH HYDRO ELECTRIC,130051
South Ribble Council,http://statistics.data.gov.uk/doc/local-authority/30UN,Area 2 - Waste Transport/Eastern & Central Teams,Cap Vehicles,C440,GRAPHICS TO BE FITTED TO 9 NEW VEHICLES,24/05/2019,0000447135,"2,416.67",Revenue,SIGNS PRESTON LTD T/A SIGNS EXPRESS CENTRAL LANCS,131706
South Ribble Council,http://statistics.data.gov.uk/doc/local-authority/30UN,Area 3 - Parks/Leyland East West,Capital Expenditure,C230,Stock fencing to protect new woodland planting at Worden Park,10/05/2019,0000446914,"2,516.00",Revenue,Singleton Landwork Ltd,131959
South Ribble Council,http://statistics.data.gov.uk/doc/local-authority/30UN,Neighbourhood Admin & Support,Clothing- Uniforms & Laundry,4410,WATERPROOF JACKETS  - SUPERTOUCH 35B4 YELLOW - MEDIUM - HBJYST35B4,22/05/2019,0000447132,108.50,Revenue,SMART IMAGE WORKWEAR,00031503
South Ribble Council,http://statistics.data.gov.uk/doc/local-authority/30UN,Neighbourhood Admin & Support,Clothing- Uniforms & Laundry,4410,WATERPROOF JACKETS  - SUPERTOUCH 35B4 YELLOW - LARGE - HBJYST35B4,22/05/2019,0000447132,108.50,Revenue,SMART IMAGE WORKWEAR,00031503
South Ribble Council,http://statistics.data.gov.uk/doc/local-authority/30UN,Neighbourhood Admin & Support,Clothing- Uniforms & Laundry,4410,BALLISTIC TROUSERS - NAVY ORN VULTURE  32`` SHORT - WTORN2900,22/05/2019,0000447132,39.90,Revenue,SMART IMAGE WORKWEAR,00031503
South Ribble Council,http://statistics.data.gov.uk/doc/local-authority/30UN,Neighbourhood Admin & Support,Clothing- Uniforms & Laundry,4410,LATEX POWERED DISPOSABLE GLOVES LARGE - CDCLP,22/05/2019,0000447132,3.90,Revenue,SMART IMAGE WORKWEAR,00031503
South Ribble Council,http://statistics.data.gov.uk/doc/local-authority/30UN,HR & Communications,Payroll Suspense,1731,PLEASE PROVIDE VOUCHER SHOP VOUCHERS TO THE VALUE OF 250.00 - NAME REDACTED,15/05/2019,0000446775,250.00,Revenue,Sodexo T/A THE VOUCHER SHOP,130951
South Ribble Council,http://statistics.data.gov.uk/doc/local-authority/30UN,HR & Communications,Payroll Suspense,1731,postage,15/05/2019,0000446775,7.00,Revenue,Sodexo T/A THE VOUCHER SHOP,130951
South Ribble Council,http://statistics.data.gov.uk/doc/local-authority/30UN,Healthy Communities,Consultancy Fees,4532,Leisure Services Fee 2018/2019,03/05/2019,0000446762,"16,639.56",Revenue,SOUTH RIBBLE COMMUNITY LEISURE LTD,00094210
South Ribble Council,http://statistics.data.gov.uk/doc/local-authority/30UN,Shared Financial Services,Balance Sheet,0030,sal deds,10/05/2019,0000446900,678.00,Revenue,SOUTH RIBBLE LABOUR PARTY LOCAL GOVERNM,00120663
South Ribble Council,http://statistics.data.gov.uk/doc/local-authority/30UN,Neighbourhood Admin & Support,Operational Furniture & Equip,4010,match against credit,01/05/2019,0000446182,392.70,Revenue,SPALDINGS,00070849
South Ribble Council,http://statistics.data.gov.uk/doc/local-authority/30UN,Neighbourhood Admin & Support,Operational Furniture & Equip,4010,FORK � HAND BULLDOG EVERGREEN - 27358,01/05/2019,0000446567,6.16,Revenue,SPALDINGS,00070849
South Ribble Council,http://statistics.data.gov.uk/doc/local-authority/30UN,Neighbourhood Admin & Support,Operational Furniture & Equip,4010, SHOVEL - Size 2 T handles 041525,01/05/2019,0000446567,72.00,Revenue,SPALDINGS,00070849
South Ribble Council,http://statistics.data.gov.uk/doc/local-authority/30UN,Neighbourhood Admin & Support,Operational Furniture & Equip,4010,litter picker - CREDIT REC`D,01/05/2019,0000446567,561.00,Revenue,SPALDINGS,00070849
South Ribble Council,http://statistics.data.gov.uk/doc/local-authority/30UN,Neighbourhood Admin & Support,Operational Furniture & Equip,4010,line marker white,01/05/2019,0000446567,40.17,Revenue,SPALDINGS,00070849
South Ribble Council,http://statistics.data.gov.uk/doc/local-authority/30UN,Area 2 - Waste Transport/Eastern & Central Teams,Materials General,4040,Deck Rollers BIN1002,01/05/2019,0000446570,217.80,Revenue,SPALDINGS,00070849
South Ribble Council,http://statistics.data.gov.uk/doc/local-authority/30UN,Area 2 - Waste Transport/Eastern & Central Teams,Materials General,4040,Scraper Wires BIN1003,01/05/2019,0000446570,48.96,Revenue,SPALDINGS,00070849
South Ribble Council,http://statistics.data.gov.uk/doc/local-authority/30UN,Area 2 - Waste Transport/Eastern & Central Teams,Materials General,4040,Sole Plates BIN1004,01/05/2019,0000446570,133.65,Revenue,SPALDINGS,00070849
South Ribble Council,http://statistics.data.gov.uk/doc/local-authority/30UN,Area 2 - Waste Transport/Eastern & Central Teams,Materials General,4040,Blade bolts  (50) BIN1005,01/05/2019,0000446570,27.11,Revenue,SPALDINGS,00070849
South Ribble Council,http://statistics.data.gov.uk/doc/local-authority/30UN,Area 2 - Waste Transport/Eastern & Central Teams,Materials General,4040,Hand wheel adjuster TGM01A3 JFC12279,01/05/2019,0000446570,35.70,Revenue,SPALDINGS,00070849
South Ribble Council,http://statistics.data.gov.uk/doc/local-authority/30UN,Area 2 - Waste Transport/Eastern & Central Teams,Materials General,4040,3 x pivot brackets - Bin 1036,22/05/2019,0000447116,357.00,Revenue,SPALDINGS,00070849
South Ribble Council,http://statistics.data.gov.uk/doc/local-authority/30UN,Area 2 - Waste Transport/Eastern & Central Teams,Materials General,4040,2 x blazed blocks bin 1037,29/05/2019,0000447319,485.00,Revenue,SPALDINGS,00070849
South Ribble Council,http://statistics.data.gov.uk/doc/local-authority/30UN,Area 2 - Waste Transport/Eastern & Central Teams,Materials General,4040,7 x deck blades BIN 1265,29/05/2019,0000447320,150.85,Revenue,SPALDINGS,00070849
South Ribble Council,http://statistics.data.gov.uk/doc/local-authority/30UN,Area 2 - Waste Transport/Eastern & Central Teams,Materials General,4040,Deck screws bag of 50 bin 1114,29/05/2019,0000447320,15.50,Revenue,SPALDINGS,00070849
South Ribble Council,http://statistics.data.gov.uk/doc/local-authority/30UN,Area 2 - Waste Transport/Eastern & Central Teams,Materials General,4040,Bronze brushes x 12 bin 1134,29/05/2019,0000447320,100.08,Revenue,SPALDINGS,00070849
South Ribble Council,http://statistics.data.gov.uk/doc/local-authority/30UN,Area 2 - Waste Transport/Eastern & Central Teams,Materials General,4040,Deck pins x 4 bin 1132,29/05/2019,0000447320,82.00,Revenue,SPALDINGS,00070849
South Ribble Council,http://statistics.data.gov.uk/doc/local-authority/30UN,Area 2 - Waste Transport/Eastern & Central Teams,Materials General,4040,Pivot bolts x 8 bin 1128,29/05/2019,0000447320,102.00,Revenue,SPALDINGS,00070849
South Ribble Council,http://statistics.data.gov.uk/doc/local-authority/30UN,Area 2 - Waste Transport/Eastern & Central Teams,Materials General,4040,Plastic brushes x 6 PO16HNA JFC 11649,29/05/2019,0000447320,16.20,Revenue,SPALDINGS,00070849
South Ribble Council,http://statistics.data.gov.uk/doc/local-authority/30UN,Area 2 - Waste Transport/Eastern & Central Teams,Materials General,4040,Deflector flap PO16HNA JFC 11649,29/05/2019,0000447320,28.60,Revenue,SPALDINGS,00070849
South Ribble Council,http://statistics.data.gov.uk/doc/local-authority/30UN,Area 2 - Waste Transport/Eastern & Central Teams,Materials General,4040,3 x Tyres PO16HNA JFC 11649,29/05/2019,0000447320,179.00,Revenue,SPALDINGS,00070849
South Ribble Council,http://statistics.data.gov.uk/doc/local-authority/30UN,Democratic Services,Other Misc,4421,"Use of the venue for the Local Elections on Thursday 2 May 2019.Access is required from approx. 6:15 am until 10:15 pm. ",22/05/2019,0000447224,352.00,Revenue,ST AMBROSE CHURCH HALL,00081540
South Ribble Council,http://statistics.data.gov.uk/doc/local-authority/30UN,Democratic Services,Other Misc,4421,"Use of the venue for the Local Elections on Thursday 2 May 2019.  Access is required from 6:15 am until 10:15 pm.  ",15/05/2019,0000446676,288.00,Revenue,ST PAULS FARINGTON P C C,00046103
South Ribble Council,http://statistics.data.gov.uk/doc/local-authority/30UN,Regeneration,Capital Expenditure,C230,Geophysical Survey for West Paddock Campus.,22/05/2019,0000446794,985.00,Revenue,Sumo Services Ltd,132797
South Ribble Council,http://statistics.data.gov.uk/doc/local-authority/30UN,Area 3 - Parks/Leyland East West,Materials General,4040,Powder coat 5x street benches from Hough Lane Black.,01/05/2019,0000446777,350.00,Revenue,Superior Powder Coatings UK Ltd,132494
South Ribble Council,http://statistics.data.gov.uk/doc/local-authority/30UN,Area 3 - Parks/Leyland East West,Grounds Maint Cntrctrs Chgs,4657,"Quotation Ref, Dish Roundabout (SWD100)",01/05/2019,0000446528,920.00,Revenue,SUTCLIFFE PLAY LTD,00034953
South Ribble Council,http://statistics.data.gov.uk/doc/local-authority/30UN,Area 3 - Parks/Leyland East West,Grounds Maint Cntrctrs Chgs,4657,Carriage,01/05/2019,0000446528,115.00,Revenue,SUTCLIFFE PLAY LTD,00034953
South Ribble Council,http://statistics.data.gov.uk/doc/local-authority/30UN,Area 3 - Parks/Leyland East West,Grounds Maint Cntrctrs Chgs,4657,"New LongtonInstallation and surfacing repair for dish roundabout.",01/05/2019,0000446652,"2,257.14",Revenue,SUTCLIFFE PLAY LTD,00034953
South Ribble Council,http://statistics.data.gov.uk/doc/local-authority/30UN,Information Services,Consultancy Fees,4541,Monthly retainer service to fulfil SRBC`s requirements 2.5 days per month beginning 1st February 2019 for 6 months,03/05/2019,0000446785,"1,500.00",Revenue,TechAlign,132535
South Ribble Council,http://statistics.data.gov.uk/doc/local-authority/30UN,Information Services,Peripherals,4247,"AD Upgrade & Office365 Enablement SoW, as per quote ref. 107",10/05/2019,0000446822,"3,995.00",Revenue,TechAlign,132535
South Ribble Council,http://statistics.data.gov.uk/doc/local-authority/30UN,Property Services,Rep & Maint Premises,2020,"2019 / 2020 service contract for sliding doors to the caf� door 1, caf� door 2, car park entrance left & right, at Leyland market",22/05/2019,0000447119,528.00,Revenue,THE AUTOMATIC DOOR COMPANY LTD,00108533
South Ribble Council,http://statistics.data.gov.uk/doc/local-authority/30UN,Neighbourhood Admin & Support,Capital Expenditure,C230,INSTALLATION OF 3No LITTLE THURLOW CLEAN BURN STOVES WITH ASSOCIATED WORKS,22/05/2019,0000447062,"6,314.00",Revenue,The Fire Barn Ltd,132749
South Ribble Council,http://statistics.data.gov.uk/doc/local-authority/30UN,Neighbourhood Admin & Support,Operational Furniture & Equip,4010,LITTER PICKER - RANGER MAX - LP3035 - 35``,22/05/2019,0000447190,810.50,Revenue,The Helping Hand Company,132811
South Ribble Council,http://statistics.data.gov.uk/doc/local-authority/30UN,Information Services,Peripherals,4247,"Annual Cisco support 01/04/19 - 31/03/20, as per quote",01/05/2019,0000446747,"7,232.00",Revenue,The Networking People NW (t/a TNP),132331
South Ribble Council,http://statistics.data.gov.uk/doc/local-authority/30UN,Information Services,Capital Expenditure,C234,"HP switches, as per quote SQ105380",08/05/2019,0000446852,"6,131.80",Revenue,The Networking People NW (t/a TNP),132331
South Ribble Council,http://statistics.data.gov.uk/doc/local-authority/30UN,Information Services,Capital Expenditure,C234,"Professional Services for DR config., as per quote SQ105108",08/05/2019,0000446853,"2,600.00",Revenue,The Networking People NW (t/a TNP),132331
South Ribble Council,http://statistics.data.gov.uk/doc/local-authority/30UN,Information Services,Peripherals,4247,"HPE FlexNetwork - slot switch, twin cable, power supply, plus delivery as per quote SQ105552",22/05/2019,0000447106,"2,334.08",Revenue,The Networking People NW (t/a TNP),132331
South Ribble Council,http://statistics.data.gov.uk/doc/local-authority/30UN,Legal,Publications,4142,local auth licensing,01/05/2019,0000446686,692.00,Revenue,THOMSON REUTERS,00034979
South Ribble Council,http://statistics.data.gov.uk/doc/local-authority/30UN,Neighbourhood Admin & Support,Capital Expenditure,C230,To re-locate 6 UTP lines at Unit 81 Bison Place as part of office/staff changes - all as per your quotation TC1767/19,03/05/2019,0000446426,946.00,Revenue,TIS Networks,132417
South Ribble Council,http://statistics.data.gov.uk/doc/local-authority/30UN,Neighbourhood Admin & Support,External Contractors Charges,4570,"ELITE STANDARD SUPPORTAnnual Hardware Support 1.6.19 - 31.5.19",01/05/2019,0000446675,843.42,Revenue,TRISCAN SYSTEMS LIMITED,00108339
South Ribble Council,http://statistics.data.gov.uk/doc/local-authority/30UN,HR & Communications,Training Expense-Course Fees,1402,NAME REDACTED TO ATTEND A `MANUAL HANDLING TRAIN THE TRAINER` COURSE ON 15 & 16 MAY 2019 ,01/05/2019,0000446649,625.00,Revenue,TUTORCARE LIMITED,132817
South Ribble Council,http://statistics.data.gov.uk/doc/local-authority/30UN,Healthy Communities,Other Misc,4851,"Design and artwork - Amends to existing brochuresupply of print-ready artwork  cost 20 page booklet, 255 + VAT",10/05/2019,0000446821,255.00,Revenue,TWA Marketing and Communications Ltd,132818
South Ribble Council,http://statistics.data.gov.uk/doc/local-authority/30UN,Property Services,Operational Furniture & Equip,4013,2019 / 2020 contract number 05590 for the maintenance of the refrigeration units at the Civic Centre,03/05/2019,0000446846,"1,260.00",Revenue,UNIVERSAL COOLING LTD,130914
South Ribble Council,http://statistics.data.gov.uk/doc/local-authority/30UN,Property Services,Rep & Maint Premises,2020,three portable Air Con Units to be installed on the three corner offices (Labour/2nd / 3rd Floor). As per NAME REDACTED ,03/05/2019,0000446847,"1,605.00",Revenue,UNIVERSAL COOLING LTD,130914
South Ribble Council,http://statistics.data.gov.uk/doc/local-authority/30UN,Property Services,Rep & Maint Premises,2020,"Annual Contract for Maintenance 2019 - 2020 Contract  Number 055992 dated 6.3.2019Civic Centre",08/05/2019,0000446854,"2,312.00",Revenue,UNIVERSAL COOLING LTD,130914
South Ribble Council,http://statistics.data.gov.uk/doc/local-authority/30UN,Area 2 - Waste Transport/Eastern & Central Teams,Cap Vehicles,C440,Yamaha YFM350 fitted with a Vale PKL Spraying System and a Road Legal Lighting Kit.,24/05/2019,0000446706,"7,250.00",Revenue,VALE ENGINEERING (YORK) LTD,130424
South Ribble Council,http://statistics.data.gov.uk/doc/local-authority/30UN,Area 1 - Penwortham Western Parishes,Operational Furniture & Equip,4013,VB 30 analogue & IP Single Stream Encoder,22/05/2019,0000446752,"2,062.50",Revenue,Vemotion Interactive Ltd,131574
South Ribble Council,http://statistics.data.gov.uk/doc/local-authority/30UN,Area 1 - Penwortham Western Parishes,Operational Furniture & Equip,4013,Water proofing of 2 units @ 200.00 each,22/05/2019,0000446752,400.00,Revenue,Vemotion Interactive Ltd,131574
South Ribble Council,http://statistics.data.gov.uk/doc/local-authority/30UN,Area 1 - Penwortham Western Parishes,Operational Furniture & Equip,4013,carriage,22/05/2019,0000446752,25.00,Revenue,Vemotion Interactive Ltd,131574
South Ribble Council,http://statistics.data.gov.uk/doc/local-authority/30UN,Property Services,Operational Furniture & Equip,4012,2019 / 2020 annual contract for the monthly rental of hot drinks machines at the civic centre including environmental charge.,03/05/2019,0000446773,"1,232.02",Revenue,VENDING ENTERPRISES,00101501
South Ribble Council,http://statistics.data.gov.uk/doc/local-authority/30UN,Information Services,Peripherals,4269,,01/05/2019,0000446723,724.46,Revenue,VODAFONE RE:CABLE & WIRELESS UK,130810
South Ribble Council,http://statistics.data.gov.uk/doc/local-authority/30UN,Information Services,Peripherals,4247,APRIL CHARGES,10/05/2019,0000446935,"1,783.00",Revenue,VODAFONE RE:CABLE & WIRELESS UK,130810
South Ribble Council,http://statistics.data.gov.uk/doc/local-authority/30UN,Property Services,Rates,2412,HOPE TERRACE CPARK,24/05/2019,0000446555,"1,847.19",Revenue,WATER PLUS,00029845
South Ribble Council,http://statistics.data.gov.uk/doc/local-authority/30UN,Property Services,Rates,2412,HOPE TERRACE WC`S,24/05/2019,0000446555,147.48,Revenue,WATER PLUS,00029845
South Ribble Council,http://statistics.data.gov.uk/doc/local-authority/30UN,Property Services,Rates,2412,8 GREENBANK RD CPARK,24/05/2019,0000446555,18.60,Revenue,WATER PLUS,00029845
South Ribble Council,http://statistics.data.gov.uk/doc/local-authority/30UN,Property Services,Rates,2412,RYEFIELD AVE CPARK,24/05/2019,0000446555,55.33,Revenue,WATER PLUS,00029845
South Ribble Council,http://statistics.data.gov.uk/doc/local-authority/30UN,Property Services,Rates,2412,MUSEUM CHURCH RD,24/05/2019,0000446555,147.48,Revenue,WATER PLUS,00029845
South Ribble Council,http://statistics.data.gov.uk/doc/local-authority/30UN,Property Services,Rates,2412,CHURCHILL WAY CPARK,24/05/2019,0000446555,"1,847.19",Revenue,WATER PLUS,00029845
South Ribble Council,http://statistics.data.gov.uk/doc/local-authority/30UN,Property Services,Rates,2412,KING ST CPARK,24/05/2019,0000446555,"8,590.17",Revenue,WATER PLUS,00029845
South Ribble Council,http://statistics.data.gov.uk/doc/local-authority/30UN,Property Services,Rates,2412,CPARK OFF KING ST,24/05/2019,0000446555,88.25,Revenue,WATER PLUS,00029845
South Ribble Council,http://statistics.data.gov.uk/doc/local-authority/30UN,Property Services,Rates,2412,LEYLAND LN,24/05/2019,0000446555,33.39,Revenue,WATER PLUS,00029845
South Ribble Council,http://statistics.data.gov.uk/doc/local-authority/30UN,Property Services,Rates,2412,CIVIC CENTRE,24/05/2019,0000446555,"16,320.33",Revenue,WATER PLUS,00029845
South Ribble Council,http://statistics.data.gov.uk/doc/local-authority/30UN,Property Services,Rates,2412,BRANDIFORTH ST,24/05/2019,0000446555,11.45,Revenue,WATER PLUS,00029845
South Ribble Council,http://statistics.data.gov.uk/doc/local-authority/30UN,Property Services,Rates,2412,REAR OF SERV ST,24/05/2019,0000446555,366.31,Revenue,WATER PLUS,00029845
South Ribble Council,http://statistics.data.gov.uk/doc/local-authority/30UN,Property Services,Rates,2412,JAMES ST,24/05/2019,0000446555,7.16,Revenue,WATER PLUS,00029845
South Ribble Council,http://statistics.data.gov.uk/doc/local-authority/30UN,Property Services,Rates,2412,KINGSWAY CPARK,24/05/2019,0000446555,62.49,Revenue,WATER PLUS,00029845
South Ribble Council,http://statistics.data.gov.uk/doc/local-authority/30UN,Property Services,Rates,2412,SCHOOL ST,24/05/2019,0000446555,9.06,Revenue,WATER PLUS,00029845
South Ribble Council,http://statistics.data.gov.uk/doc/local-authority/30UN,Property Services,Rates,2412,RIVERSIDE MED CENTRE,24/05/2019,0000446555,48.65,Revenue,WATER PLUS,00029845
South Ribble Council,http://statistics.data.gov.uk/doc/local-authority/30UN,Property Services,Rates,2412,WITHY GROVE RD,24/05/2019,0000446555,147.48,Revenue,WATER PLUS,00029845
South Ribble Council,http://statistics.data.gov.uk/doc/local-authority/30UN,Property Services,Water Charges,2511,28/9/18 to 3/4/2019,03/05/2019,0000446695,479.66,Revenue,WATER PLUS,00029845
South Ribble Council,http://statistics.data.gov.uk/doc/local-authority/30UN,Property Services,Water Charges,2511,31/1/19 to 24/4/19,03/05/2019,0000446789,"2,079.71",Revenue,WATER PLUS,00029845
South Ribble Council,http://statistics.data.gov.uk/doc/local-authority/30UN,Property Services,Water Charges,2511,oct 18-apr 19,08/05/2019,0000446844,420.13,Revenue,WATER PLUS,00029845
South Ribble Council,http://statistics.data.gov.uk/doc/local-authority/30UN,Property Services,Water Charges,2511,15/2/19 to 6/6/19,15/05/2019,0000447025,639.96,Revenue,WATER PLUS,00029845
South Ribble Council,http://statistics.data.gov.uk/doc/local-authority/30UN,Property Services,Water Charges,2511,14/2/19 to 12/5/2019,24/05/2019,0000447294,"8,074.81",Revenue,WATER PLUS,00029845
South Ribble Council,http://statistics.data.gov.uk/doc/local-authority/30UN,Legal,Legal,4821,PROFESSIONAL SERVICES RELATING TO LEYLAND TEST TRACK,01/05/2019,0000446455,450.00,Revenue,WEIGHTMANS LLP,00120867
South Ribble Council,http://statistics.data.gov.uk/doc/local-authority/30UN,Legal,Legal,4821,PROFESSIONAL SERVICES - ASVICE ON EXEMPT COMMITTEE REPORTS - 4 MARCH 2019 - 18 MARCH 2019,01/05/2019,0000446465,810.00,Revenue,WEIGHTMANS LLP,00120867
South Ribble Council,http://statistics.data.gov.uk/doc/local-authority/30UN,Legal,Legal,4821,PROFESSIONAL SERVICES REGARDING `TELECOMMUNICATIONS NOTICES` 26 FEBRUARY - 19 MARCH 2019,01/05/2019,0000446523,"1,374.00",Revenue,WEIGHTMANS LLP,00120867
South Ribble Council,http://statistics.data.gov.uk/doc/local-authority/30UN,Area 3 - Parks/Leyland East West,External Contractors Charges,4570,Stump grinding at Coupe Green.,03/05/2019,0000446843,450.00,Revenue,WESTFIELD TREE SERVICES LTD,00114226
South Ribble Council,http://statistics.data.gov.uk/doc/local-authority/30UN,Area 2 - Waste Transport/Eastern & Central Teams,Cap Vehicles,C440,"3500 kg Crew Cab Tipper FWDx4, 3500 kg Crew Cab Tipper with Tail Lift FWDx2, 3500 kg Single Cab Tipper FWDx1",24/05/2019,0000447092,"22,500.00",Revenue,Westway Nissan,131964
South Ribble Council,http://statistics.data.gov.uk/doc/local-authority/30UN,Area 2 - Waste Transport/Eastern & Central Teams,Cap Vehicles,C440,reg licence,24/05/2019,0000447092,315.00,Revenue,Westway Nissan,131964
South Ribble Council,http://statistics.data.gov.uk/doc/local-authority/30UN,Area 2 - Waste Transport/Eastern & Central Teams,Cap Vehicles,C440,"3500 kg Crew Cab Tipper FWD x 4, 3500 kg Crew Cab Tipper with Tail Lift FWD x 2, 3500 kg Single Cab Tipper FWD x 1",24/05/2019,0000447098,"23,000.00",Revenue,Westway Nissan,131964
South Ribble Council,http://statistics.data.gov.uk/doc/local-authority/30UN,Area 2 - Waste Transport/Eastern & Central Teams,Cap Vehicles,C440,reg licence,24/05/2019,0000447098,315.00,Revenue,Westway Nissan,131964
South Ribble Council,http://statistics.data.gov.uk/doc/local-authority/30UN,Area 2 - Waste Transport/Eastern & Central Teams,Cap Vehicles,C440,"3500 kg Crew Cab Tipper FWD x 4, 3500 kg Crew Cab Tipper with Tail Lift FWD x 2, 3500 kg Single Cab Tipper FWD x 1",24/05/2019,0000447099,"22,500.00",Revenue,Westway Nissan,131964
South Ribble Council,http://statistics.data.gov.uk/doc/local-authority/30UN,Area 2 - Waste Transport/Eastern & Central Teams,Cap Vehicles,C440,reg licence,24/05/2019,0000447099,315.00,Revenue,Westway Nissan,131964
South Ribble Council,http://statistics.data.gov.uk/doc/local-authority/30UN,Area 2 - Waste Transport/Eastern & Central Teams,Cap Vehicles,C440,"3500 kg Crew Cab Tipper FWD x 4, 3500 kg Crew Cab Tipper with Tail Lift FWD x 2, 3500 kg Single Cab Tipper FWD x 1",24/05/2019,0000447100,"22,500.00",Revenue,Westway Nissan,131964
South Ribble Council,http://statistics.data.gov.uk/doc/local-authority/30UN,Area 2 - Waste Transport/Eastern & Central Teams,Cap Vehicles,C440,reg licence,24/05/2019,0000447100,315.00,Revenue,Westway Nissan,131964
South Ribble Council,http://statistics.data.gov.uk/doc/local-authority/30UN,Area 2 - Waste Transport/Eastern & Central Teams,Cap Vehicles,C440,"3500 kg Crew Cab Tipper FWD x 4, 3500 kg Crew Cab Tipper with Tail Lift FWD x 2, 3500 kg Single Cab Tipper FWD x 1",24/05/2019,0000447101,"18,900.00",Revenue,Westway Nissan,131964
South Ribble Council,http://statistics.data.gov.uk/doc/local-authority/30UN,Area 2 - Waste Transport/Eastern & Central Teams,Cap Vehicles,C440,12mths reg,24/05/2019,0000447101,315.00,Revenue,Westway Nissan,131964
South Ribble Council,http://statistics.data.gov.uk/doc/local-authority/30UN,Revenues Plus,Postage,4291,Revenues post April - June 2019,03/05/2019,0000444867,384.86,Revenue,WHISTL  UK LTD,131310
South Ribble Council,http://statistics.data.gov.uk/doc/local-authority/30UN,Revenues Plus,Postage,4291,Invoicing week 2019/15 awaiting credit note,03/05/2019,0000446519,"1,473.87",Revenue,WHISTL  UK LTD,131310
South Ribble Council,http://statistics.data.gov.uk/doc/local-authority/30UN,Revenues Plus,Postage,4291,Mail Services Revenues Jan - March 2019,03/05/2019,0000446634,"1,315.66",Revenue,WHISTL  UK LTD,131310
South Ribble Council,http://statistics.data.gov.uk/doc/local-authority/30UN,Revenues Plus,Postage,4291,Revenues post April - June 2019,15/05/2019,0000447007,597.71,Revenue,WHISTL  UK LTD,131310
South Ribble Council,http://statistics.data.gov.uk/doc/local-authority/30UN,Area 2 - Waste Transport/Eastern & Central Teams,External Contractors Charges,4570,PO closedto be forced through,29/05/2019,0000446213,345.75,Revenue,WILLIAM MOORE & SON (PRESTON) LTD,00028312
South Ribble Council,http://statistics.data.gov.uk/doc/local-authority/30UN,Area 3 - Parks/Leyland East West,Capital Expenditure,C230,To construct 1.5m high wall on new concrete foundation 10m in length from 140mm 7N solid concrete block,22/05/2019,0000447279,"1,450.00",Revenue,WILLIAM PYE LTD,00031590
South Ribble Council,http://statistics.data.gov.uk/doc/local-authority/30UN,Area 3 - Parks/Leyland East West,Capital Expenditure,C230,"To supply and install 10m of Armco barrier using base plates, posts and fish tail ends",22/05/2019,0000447279,"1,450.00",Revenue,WILLIAM PYE LTD,00031590
South Ribble Council,http://statistics.data.gov.uk/doc/local-authority/30UN,Area 3 - Parks/Leyland East West,Capital Expenditure,C230,To construct concrete foundation for new tank behind wall,22/05/2019,0000447279,"1,035.00",Revenue,WILLIAM PYE LTD,00031590
South Ribble Council,http://statistics.data.gov.uk/doc/local-authority/30UN,Neighbourhood Admin & Support,Capital Expenditure,C230,WORKS TO REPARI CHIMNEYS & FIRE PLACES OF BREW HOUSE AND UNIT 2 INCLUDING SCAFFOLDING,10/05/2019,0000446793,904.50,Revenue,WJ Structures Ltd,132581
South Ribble Council,http://statistics.data.gov.uk/doc/local-authority/30UN,Housing,Cap Expend Other,C750,DFG WORKS TO RAILS AND LIGHTING ATADDRESS REDACTED CONTOUR HOUSING 50% 726.50 COST 726.50,17/05/2019,0000447090,726.50,Revenue,WRPS Ltd,132722
South Ribble Council,http://statistics.data.gov.uk/doc/local-authority/30UN,Regeneration,Other Misc,4851,Fees and Disbursements for A582 road,22/05/2019,0000447146,"6,000.00",Revenue,WSP UK Ltd,132833
South Ribble Council,http://statistics.data.gov.uk/doc/local-authority/30UN,Shared Assurance Services,Employee Related Insurance,1800,Personal Licence Holder - Prof Neg cover 01/02/19-31/12/19,22/05/2019,0000447089,256.15,Revenue,Zurich Municipal Insurance plc,132190
